Body,Body name,Date,Transaction number,Amount,Non recoverable VAT included in amount,Supplier name,Supplier ID,Expense area,Fund type,Expense type,Category description,
http://statistics.data.gov.uk/search?search=E07000114,Thanet District Council,02/08/2016,413338,6750.00,,Albion Fencing&Construction Kent Ltd,ALB005,Operational Services,Revenue,"Repairs,  Alter & Mtce - Build",Building Construction Material,
http://statistics.data.gov.uk/search?search=E07000114,Thanet District Council,02/08/2016,413829,12239.98,,Bevan Brittan Llp,BEV001,Community Services,Revenue,Services,Legal Services,
http://statistics.data.gov.uk/search?search=E07000114,Thanet District Council,02/08/2016,413837,6699.46,,Bramling Construction Ltd,BRA020,Corporate Resources and S151,Balance Sheet,Capital Exp-Non Council Assets,Grants,
http://statistics.data.gov.uk/search?search=E07000114,Thanet District Council,02/08/2016,412271,6961.00,,Burgess Marine Ltd,BUR017,Operational Services,Revenue,"Repairs,  Alter & Mtce - Build",Maritime Services,
http://statistics.data.gov.uk/search?search=E07000114,Thanet District Council,02/08/2016,412946,-800.00,,Burgess Marine Ltd,BUR017,Operational Services,Revenue,"Repairs,  Alter & Mtce - Build",Maritime Services,
http://statistics.data.gov.uk/search?search=E07000114,Thanet District Council,02/08/2016,413759,4026.03,,Civica Uk Ltd,CIV003,East Kent Shared Services,Revenue,Communications & Computing,ICT,
http://statistics.data.gov.uk/search?search=E07000114,Thanet District Council,02/08/2016,413760,2975.42,,Civica Uk Ltd,CIV003,East Kent Shared Services,Revenue,Communications & Computing,ICT,
http://statistics.data.gov.uk/search?search=E07000114,Thanet District Council,02/08/2016,413746,1425.00,,Cyberkix Limited,CYB001,East Kent Shared Services,Revenue,"Equip, Furniture And Materials",ICT,
http://statistics.data.gov.uk/search?search=E07000114,Thanet District Council,02/08/2016,413322,10352.25,,Dcb (Kent) Ltd,DCB001,Corporate Resources and S151,Balance Sheet,Repairs And Mtce Holding A/C,Construction-Repair And Maint,
http://statistics.data.gov.uk/search?search=E07000114,Thanet District Council,02/08/2016,413323,62870.59,,Dcb (Kent) Ltd,DCB001,Corporate Resources and S151,Balance Sheet,Repairs And Mtce Holding A/C,Construction-Repair And Maint,
http://statistics.data.gov.uk/search?search=E07000114,Thanet District Council,02/08/2016,413324,8157.25,,Dcb (Kent) Ltd,DCB001,Corporate Resources and S151,Balance Sheet,Repairs And Mtce Holding A/C,Construction-Repair And Maint,
http://statistics.data.gov.uk/search?search=E07000114,Thanet District Council,02/08/2016,413325,1848.00,,Dcb (Kent) Ltd,DCB001,Corporate Resources and S151,Balance Sheet,Repairs And Mtce Holding A/C,Construction-Repair And Maint,
http://statistics.data.gov.uk/search?search=E07000114,Thanet District Council,02/08/2016,413284,2500.00,,Deyton Bell Limited,DEY001,Community Services,Revenue,Services,Consultancy,
http://statistics.data.gov.uk/search?search=E07000114,Thanet District Council,02/08/2016,413834,4700.00,,Dolphin Lifts Kent,DOL003,Corporate Resources and S151,Balance Sheet,Capital Exp-Non Council Assets,Grants,
http://statistics.data.gov.uk/search?search=E07000114,Thanet District Council,02/08/2016,413677,46945.00,,Dover District Council,DOV001,East Kent Shared Services,Revenue,Services,Various Cats-Public Sector,
http://statistics.data.gov.uk/search?search=E07000114,Thanet District Council,02/08/2016,413678,8027.50,,Dover District Council,DOV001,East Kent Shared Services,Revenue,Services,Various Cats-Public Sector,
http://statistics.data.gov.uk/search?search=E07000114,Thanet District Council,02/08/2016,413903,44171.02,,Dover District Council,DOV001,Corporate Resources and S151,Revenue,Services,Various Cats-Public Sector,
http://statistics.data.gov.uk/search?search=E07000114,Thanet District Council,02/08/2016,413355,2415.65,,Elec-Sec Ltd,ELE014,Corporate Resources and S151,Balance Sheet,Repairs And Mtce Holding A/C,Building Construction Material,
http://statistics.data.gov.uk/search?search=E07000114,Thanet District Council,02/08/2016,412982,8370.95,,Electoral Reform Services,ELE010,Corporate Governance,Revenue,Communications & Computing,Facilities And Management Serv,
http://statistics.data.gov.uk/search?search=E07000114,Thanet District Council,02/08/2016,412982,13131.76,,Electoral Reform Services,ELE010,Corporate Governance,Revenue,"Print, Stat And Gen Off Exps",Facilities And Management Serv,
http://statistics.data.gov.uk/search?search=E07000114,Thanet District Council,02/08/2016,413435,13300.06,,Facultatieve Technologies,FAC003,Operational Services,Revenue,"Repairs,  Alter & Mtce - Build",Cemetery And Crematorium,
http://statistics.data.gov.uk/search?search=E07000114,Thanet District Council,02/08/2016,413835,1324.61,,Family Mosaic Housing,FAM001,Corporate Resources and S151,Balance Sheet,Capital Exp-Non Council Assets,Housing Management,
http://statistics.data.gov.uk/search?search=E07000114,Thanet District Council,02/08/2016,413836,807.94,,Family Mosaic Housing,FAM001,Corporate Resources and S151,Balance Sheet,Capital Exp-Non Council Assets,Housing Management,
http://statistics.data.gov.uk/search?search=E07000114,Thanet District Council,02/08/2016,413838,803.94,,Family Mosaic Housing,FAM001,Corporate Resources and S151,Balance Sheet,Capital Exp-Non Council Assets,Housing Management,
http://statistics.data.gov.uk/search?search=E07000114,Thanet District Council,02/08/2016,413411,1956.00,,Gas Contract Services Ltd,GAS004,Corporate Resources and S151,Balance Sheet,Repairs And Mtce Holding A/C,Construction-Repair And Maint,
http://statistics.data.gov.uk/search?search=E07000114,Thanet District Council,02/08/2016,413139,265.00,,Grammer & Company Limited,GRA024,Community Services,Revenue,"Print, Stat And Gen Off Exps",Facilities And Management Serv,
http://statistics.data.gov.uk/search?search=E07000114,Thanet District Council,02/08/2016,413282,300.00,,Hart Graphics,HAR073,Community Services,Revenue,"Print, Stat And Gen Off Exps",Facilities And Management Serv,
http://statistics.data.gov.uk/search?search=E07000114,Thanet District Council,02/08/2016,413825,1120.00,,Hays Specialist Recruitment Ltd,HAY020,Corporate Resources and S151,Revenue,Services,Human Resources,
http://statistics.data.gov.uk/search?search=E07000114,Thanet District Council,02/08/2016,413302,1703.68,,Hr Go (Kent) Ltd,HRG001,Operational Services,Revenue,Agency Staff,Human Resources,
http://statistics.data.gov.uk/search?search=E07000114,Thanet District Council,02/08/2016,413303,2101.80,,Hr Go (Kent) Ltd,HRG001,Operational Services,Revenue,Agency Staff,Human Resources,
http://statistics.data.gov.uk/search?search=E07000114,Thanet District Council,02/08/2016,413305,358.16,,Hr Go (Kent) Ltd,HRG001,Operational Services,Revenue,Agency Staff,Human Resources,
http://statistics.data.gov.uk/search?search=E07000114,Thanet District Council,02/08/2016,413308,1818.08,,Hr Go (Kent) Ltd,HRG001,Operational Services,Revenue,Agency Staff,Human Resources,
http://statistics.data.gov.uk/search?search=E07000114,Thanet District Council,02/08/2016,413311,875.42,,Hr Go (Kent) Ltd,HRG001,Operational Services,Revenue,Agency Staff,Human Resources,
http://statistics.data.gov.uk/search?search=E07000114,Thanet District Council,02/08/2016,413392,6653.31,,Hr Go (Kent) Ltd,HRG001,Operational Services,Revenue,Agency Staff,Human Resources,
http://statistics.data.gov.uk/search?search=E07000114,Thanet District Council,02/08/2016,413393,10251.46,,Hr Go (Kent) Ltd,HRG001,Operational Services,Revenue,Agency Staff,Human Resources,
http://statistics.data.gov.uk/search?search=E07000114,Thanet District Council,02/08/2016,413394,9021.63,,Hr Go (Kent) Ltd,HRG001,Operational Services,Revenue,Agency Staff,Human Resources,
http://statistics.data.gov.uk/search?search=E07000114,Thanet District Council,02/08/2016,413839,6414.89,,Hubbard & Houghton Construction Ltd,HUB003,Corporate Resources and S151,Balance Sheet,Capital Exp-Non Council Assets,Construction-Repair And Maint,
http://statistics.data.gov.uk/search?search=E07000114,Thanet District Council,02/08/2016,413842,7232.49,,Hubbard & Houghton Construction Ltd,HUB003,Corporate Resources and S151,Balance Sheet,Capital Exp-Non Council Assets,Construction-Repair And Maint,
http://statistics.data.gov.uk/search?search=E07000114,Thanet District Council,02/08/2016,413317,2149.50,,Intermarine Ltd,INT008,Operational Services,Revenue,"Repairs,  Alter & Mtce - Build",Maritime Services,
http://statistics.data.gov.uk/search?search=E07000114,Thanet District Council,02/08/2016,413257,1640.00,,Keith Tait,TAI001,Operational Services,Revenue,Grounds Mtce Costs,Horticultural,
http://statistics.data.gov.uk/search?search=E07000114,Thanet District Council,02/08/2016,413086,350.00,,Magees Guesthouse,MAG009,Community Services,Revenue,Services,Grants,
http://statistics.data.gov.uk/search?search=E07000114,Thanet District Council,02/08/2016,413345,287.87,,Main Man Supplies Ltd,MAI001,Operational Services,Revenue,"Equip, Furniture And Materials",Clothing,
http://statistics.data.gov.uk/search?search=E07000114,Thanet District Council,02/08/2016,413628,200.00,,Main Man Supplies Ltd,MAI001,Operational Services,Revenue,"Clothes, Uniforms & Laundry",Clothing,
http://statistics.data.gov.uk/search?search=E07000114,Thanet District Council,02/08/2016,413628,366.40,,Main Man Supplies Ltd,MAI001,Operational Services,Revenue,"Equip, Furniture And Materials",Clothing,
http://statistics.data.gov.uk/search?search=E07000114,Thanet District Council,02/08/2016,413276,300.92,,Mears Ltd,MEA003,Operational Services,Revenue,"Repairs,  Alter & Mtce - Build",Construction-Repair And Maint,
http://statistics.data.gov.uk/search?search=E07000114,Thanet District Council,02/08/2016,413278,250.54,,Mears Ltd,MEA003,Operational Services,Revenue,"Repairs,  Alter & Mtce - Build",Construction-Repair And Maint,
http://statistics.data.gov.uk/search?search=E07000114,Thanet District Council,02/08/2016,413346,9162.86,,Mears Ltd,MEA003,Corporate Resources and S151,Balance Sheet,Repairs And Mtce Holding A/C,Construction-Repair And Maint,
http://statistics.data.gov.uk/search?search=E07000114,Thanet District Council,02/08/2016,413347,5119.84,,Mears Ltd,MEA003,Corporate Resources and S151,Balance Sheet,Repairs And Mtce Holding A/C,Construction-Repair And Maint,
http://statistics.data.gov.uk/search?search=E07000114,Thanet District Council,02/08/2016,413348,28587.01,,Mears Ltd,MEA003,Corporate Resources and S151,Balance Sheet,Repairs And Mtce Holding A/C,Construction-Repair And Maint,
http://statistics.data.gov.uk/search?search=E07000114,Thanet District Council,02/08/2016,413349,262.20,,Mears Ltd,MEA003,Corporate Resources and S151,Balance Sheet,Repairs And Mtce Holding A/C,Construction-Repair And Maint,
http://statistics.data.gov.uk/search?search=E07000114,Thanet District Council,02/08/2016,413350,1845.83,,Mears Ltd,MEA003,Corporate Resources and S151,Balance Sheet,Repairs And Mtce Holding A/C,Construction-Repair And Maint,
http://statistics.data.gov.uk/search?search=E07000114,Thanet District Council,02/08/2016,413351,5642.31,,Mears Ltd,MEA003,Corporate Resources and S151,Balance Sheet,Repairs And Mtce Holding A/C,Construction-Repair And Maint,
http://statistics.data.gov.uk/search?search=E07000114,Thanet District Council,02/08/2016,413352,4848.40,,Mears Ltd,MEA003,Corporate Resources and S151,Balance Sheet,Repairs And Mtce Holding A/C,Construction-Repair And Maint,
http://statistics.data.gov.uk/search?search=E07000114,Thanet District Council,02/08/2016,413621,1997.56,,Mears Ltd,MEA003,Corporate Resources and S151,Revenue,"Repairs,  Alter & Mtce - Build",Construction-Repair And Maint,
http://statistics.data.gov.uk/search?search=E07000114,Thanet District Council,02/08/2016,413621,97.42,,Mears Ltd,MEA003,Community Services,Revenue,"Repairs,  Alter & Mtce - Build",Construction-Repair And Maint,
http://statistics.data.gov.uk/search?search=E07000114,Thanet District Council,02/08/2016,413766,2035.75,,Michael Page Int Recruitment Ltd,PAG008,Corporate Resources and S151,Revenue,Agency Staff,Human Resources,
http://statistics.data.gov.uk/search?search=E07000114,Thanet District Council,02/08/2016,413754,74671.56,,Minster Parish Council,MIN001,Corporate Resources and S151,Balance Sheet,Capital Exp-Non Council Assets,Various Cats-Public Sector,
http://statistics.data.gov.uk/search?search=E07000114,Thanet District Council,02/08/2016,413144,314.16,,Morgan Jones Ltd,MOR001,Corporate Governance,Revenue,Agency Staff,Human Resources,
http://statistics.data.gov.uk/search?search=E07000114,Thanet District Council,02/08/2016,413719,468.56,,Morgan Jones Ltd,MOR001,Community Services,Revenue,Agency Staff,Human Resources,
http://statistics.data.gov.uk/search?search=E07000114,Thanet District Council,02/08/2016,413724,523.60,,Morgan Jones Ltd,MOR001,Corporate Resources and S151,Revenue,Agency Staff,Human Resources,
http://statistics.data.gov.uk/search?search=E07000114,Thanet District Council,02/08/2016,413680,575.00,,Mr Darren Osborne,OSB008,Corporate Resources and S151,Revenue,Cleaning & Domestic Supplies,Cleaning And Janitorial,
http://statistics.data.gov.uk/search?search=E07000114,Thanet District Council,02/08/2016,413680,47.50,,Mr Darren Osborne,OSB008,Community Services,Revenue,Cleaning & Domestic Supplies,Cleaning And Janitorial,
http://statistics.data.gov.uk/search?search=E07000114,Thanet District Council,02/08/2016,413680,30.00,,Mr Darren Osborne,OSB008,Operational Services,Revenue,Cleaning & Domestic Supplies,Cleaning And Janitorial,
http://statistics.data.gov.uk/search?search=E07000114,Thanet District Council,02/08/2016,413319,450.28,,Neopost Ltd,NEO003,Corporate Resources and S151,Revenue,"Print, Stat And Gen Off Exps",Mail Services,
http://statistics.data.gov.uk/search?search=E07000114,Thanet District Council,02/08/2016,413625,1000.00,,Northgate Public Services (Uk) Ltd,NOR018,Corporate Resources and S151,Revenue,Communications & Computing,ICT,
http://statistics.data.gov.uk/search?search=E07000114,Thanet District Council,02/08/2016,413361,875.96,,Ocs Group Uk Ltd T/A Fountains,OCS005,Corporate Resources and S151,Revenue,Cleaning & Domestic Supplies,Cleaning And Janitorial,
http://statistics.data.gov.uk/search?search=E07000114,Thanet District Council,02/08/2016,413443,1448.72,,Ocs Group Uk Ltd T/A Fountains,OCS005,Operational Services,Revenue,Cleaning & Domestic Supplies,Cleaning And Janitorial,
http://statistics.data.gov.uk/search?search=E07000114,Thanet District Council,02/08/2016,413725,367.02,,Probrand Ltd,PRO012,East Kent Shared Services,Revenue,Communications & Computing,ICT,
http://statistics.data.gov.uk/search?search=E07000114,Thanet District Council,02/08/2016,413140,3950.00,,Q-Matic Uk Limited,QMA001,East Kent Shared Services,Revenue,Communications & Computing,ICT,
http://statistics.data.gov.uk/search?search=E07000114,Thanet District Council,02/08/2016,413896,1000.00,,Rachel E M Taylor,TAY022,Community Services,Revenue,Services,Arts And Leisure Services,
http://statistics.data.gov.uk/search?search=E07000114,Thanet District Council,02/08/2016,413832,11042.94,,REDACTED PERSONAL DATA,LAW025,Corporate Resources and S151,Balance Sheet,Capital Exp-Non Council Assets,Grants,
http://statistics.data.gov.uk/search?search=E07000114,Thanet District Council,02/08/2016,413740,760.00,,Rippleffect,RIP001,Community Services,Revenue,Communications & Computing,ICT,
http://statistics.data.gov.uk/search?search=E07000114,Thanet District Council,02/08/2016,413280,277.52,,Safetyshop,SAF010,Operational Services,Revenue,"Repairs,  Alter & Mtce - Build",Health And Safety,
http://statistics.data.gov.uk/search?search=E07000114,Thanet District Council,02/08/2016,413579,648.00,,Sellick Partnership Ltd,SEL011,Corporate Governance,Revenue,Agency Staff,Human Resources,
http://statistics.data.gov.uk/search?search=E07000114,Thanet District Council,02/08/2016,412998,7856.00,,Sharpe Pritchard Llp,SHA030,Corporate Resources and S151,Balance Sheet,Other Land And Buildings-Hra,Legal Services,
http://statistics.data.gov.uk/search?search=E07000114,Thanet District Council,02/08/2016,413241,16250.00,,Siemens Plc,SIE002,Operational Services,Revenue,"Equip, Furniture And Materials",Facilities And Management Serv,
http://statistics.data.gov.uk/search?search=E07000114,Thanet District Council,02/08/2016,413242,16250.00,,Siemens Plc,SIE002,Operational Services,Revenue,"Equip, Furniture And Materials",Facilities And Management Serv,
http://statistics.data.gov.uk/search?search=E07000114,Thanet District Council,02/08/2016,413821,1632.00,,Sophie Jeffrey,JEF003,Community Services,Revenue,Services,Consultancy,
http://statistics.data.gov.uk/search?search=E07000114,Thanet District Council,02/08/2016,413833,6738.39,,South East Adaptations Limited,SOU026,Corporate Resources and S151,Balance Sheet,Capital Exp-Non Council Assets,Grants,
http://statistics.data.gov.uk/search?search=E07000114,Thanet District Council,02/08/2016,413841,8001.85,,South East Adaptations Limited,SOU026,Corporate Resources and S151,Balance Sheet,Capital Exp-Non Council Assets,Grants,
http://statistics.data.gov.uk/search?search=E07000114,Thanet District Council,02/08/2016,413250,700.00,,Streetmaster (S.Wales) Limited,STR001,Operational Services,Revenue,"Equip, Furniture And Materials",Highway Equipment And Material,
http://statistics.data.gov.uk/search?search=E07000114,Thanet District Council,02/08/2016,412978,3229.16,,The Glenwood Hotel,GLE007,Community Services,Revenue,Services,Housing Management,
http://statistics.data.gov.uk/search?search=E07000114,Thanet District Council,02/08/2016,412979,2933.33,,The Glenwood Hotel,GLE007,Community Services,Revenue,Services,Housing Management,
http://statistics.data.gov.uk/search?search=E07000114,Thanet District Council,02/08/2016,412980,2374.98,,The Glenwood Hotel,GLE007,Community Services,Revenue,Services,Housing Management,
http://statistics.data.gov.uk/search?search=E07000114,Thanet District Council,02/08/2016,413898,600.00,,Todoodle Ltd,TOD004,Community Services,Revenue,Services,Arts And Leisure Services,
http://statistics.data.gov.uk/search?search=E07000114,Thanet District Council,02/08/2016,413681,595.50,,Total Merchandise Ltd,TOT012,Community Services,Revenue,"Equip, Furniture And Materials",Stationery,
http://statistics.data.gov.uk/search?search=E07000114,Thanet District Council,02/08/2016,413106,505.50,,W G Burbridge,BUR016,Operational Services,Revenue,"Equip, Furniture And Materials",Building Construction Material,
http://statistics.data.gov.uk/search?search=E07000114,Thanet District Council,02/08/2016,413117,14088.40,,Westbrook Construction (Margate) Ltd,WES021,Operational Services,Revenue,"Repairs,  Alter & Mtce - Build",Various Categories,
http://statistics.data.gov.uk/search?search=E07000114,Thanet District Council,02/08/2016,413682,8681.36,,Westbrook Construction (Margate) Ltd,WES021,Operational Services,Revenue,"Repairs,  Alter & Mtce - Build",Various Categories,
http://statistics.data.gov.uk/search?search=E07000114,Thanet District Council,02/08/2016,412947,420.00,,Westward Ho Hotel,WES055,Community Services,Revenue,Services,Housing Management,
http://statistics.data.gov.uk/search?search=E07000114,Thanet District Council,02/08/2016,413804,350.00,,Your Membership Limited,YOU020,Community Services,Revenue,Advertising Expenses,Human Resources,
http://statistics.data.gov.uk/search?search=E07000114,Thanet District Council,03/08/2016,414073,636.20,,10 Dalby Square (Management) Ltd,10D001,Corporate Resources and S151,Balance Sheet,Capital Exp-Non Council Assets,Grants,
http://statistics.data.gov.uk/search?search=E07000114,Thanet District Council,03/08/2016,414074,636.20,,10 Dalby Square (Management) Ltd,10D001,Corporate Resources and S151,Balance Sheet,Capital Exp-Non Council Assets,Grants,
http://statistics.data.gov.uk/search?search=E07000114,Thanet District Council,03/08/2016,414075,636.20,,10 Dalby Square (Management) Ltd,10D001,Corporate Resources and S151,Balance Sheet,Capital Exp-Non Council Assets,Grants,
http://statistics.data.gov.uk/search?search=E07000114,Thanet District Council,03/08/2016,414076,636.20,,10 Dalby Square (Management) Ltd,10D001,Corporate Resources and S151,Balance Sheet,Capital Exp-Non Council Assets,Grants,
http://statistics.data.gov.uk/search?search=E07000114,Thanet District Council,03/08/2016,414077,636.20,,10 Dalby Square (Management) Ltd,10D001,Corporate Resources and S151,Balance Sheet,Capital Exp-Non Council Assets,Grants,
http://statistics.data.gov.uk/search?search=E07000114,Thanet District Council,03/08/2016,413340,774.00,,Aston Walker,AST008,Community Services,Revenue,Services,Cemetery And Crematorium,
http://statistics.data.gov.uk/search?search=E07000114,Thanet District Council,03/08/2016,413810,2437.50,,British Marine Federation,BRI002,Operational Services,Revenue,Grants & Subscriptions,Human Resources,
http://statistics.data.gov.uk/search?search=E07000114,Thanet District Council,03/08/2016,412910,1289.15,,Dha Planning Limited,DHA002,Community Services,Revenue,Services,Consultancy,
http://statistics.data.gov.uk/search?search=E07000114,Thanet District Council,03/08/2016,413795,2313.27,,Dx Network Services Ltd,DXN001,Corporate Resources and S151,Revenue,Communications & Computing,Mail Services,
http://statistics.data.gov.uk/search?search=E07000114,Thanet District Council,03/08/2016,412796,318.84,,Eyeball Signs,EYE002,Operational Services,Revenue,"Equip, Furniture And Materials",Facilities And Management Serv,
http://statistics.data.gov.uk/search?search=E07000114,Thanet District Council,03/08/2016,413135,717.82,,Eyeball Signs,EYE002,Operational Services,Revenue,"Repairs,  Alter & Mtce - Build",Facilities And Management Serv,
http://statistics.data.gov.uk/search?search=E07000114,Thanet District Council,03/08/2016,413306,1117.94,,Hr Go (Kent) Ltd,HRG001,Operational Services,Revenue,Agency Staff,Human Resources,
http://statistics.data.gov.uk/search?search=E07000114,Thanet District Council,03/08/2016,413811,1848.88,,Hr Go (Kent) Ltd,HRG001,Operational Services,Revenue,Agency Staff,Human Resources,
http://statistics.data.gov.uk/search?search=E07000114,Thanet District Council,03/08/2016,413812,529.47,,Hr Go (Kent) Ltd,HRG001,Community Services,Revenue,Agency Staff,Human Resources,
http://statistics.data.gov.uk/search?search=E07000114,Thanet District Council,03/08/2016,413815,358.16,,Hr Go (Kent) Ltd,HRG001,Operational Services,Revenue,Agency Staff,Human Resources,
http://statistics.data.gov.uk/search?search=E07000114,Thanet District Council,03/08/2016,412810,25019.83,,Kent County Council,KCC002,Corporate Resources and S151,Balance Sheet,Capital Exp-Non Council Assets,Various Cats-Public Sector,
http://statistics.data.gov.uk/search?search=E07000114,Thanet District Council,03/08/2016,413895,285.09,,Kent County Council,KCC002,Corporate Resources and S151,Balance Sheet,Capital Exp-Non Council Assets,Various Cats-Public Sector,
http://statistics.data.gov.uk/search?search=E07000114,Thanet District Council,03/08/2016,413686,350.00,,Magees Guesthouse,MAG009,Community Services,Revenue,Services,Grants,
http://statistics.data.gov.uk/search?search=E07000114,Thanet District Council,03/08/2016,413687,315.00,,Magees Guesthouse,MAG009,Community Services,Revenue,Services,Grants,
http://statistics.data.gov.uk/search?search=E07000114,Thanet District Council,03/08/2016,412793,911.30,,Main Man Supplies Ltd,MAI001,Operational Services,Revenue,"Clothes, Uniforms & Laundry",Clothing,
http://statistics.data.gov.uk/search?search=E07000114,Thanet District Council,03/08/2016,413726,4830.00,,Mears Ltd,MEA003,Corporate Resources and S151,Balance Sheet,Repairs And Mtce Holding A/C,Construction-Repair And Maint,
http://statistics.data.gov.uk/search?search=E07000114,Thanet District Council,03/08/2016,413727,680.22,,Mears Ltd,MEA003,Corporate Resources and S151,Balance Sheet,Repairs And Mtce Holding A/C,Construction-Repair And Maint,
http://statistics.data.gov.uk/search?search=E07000114,Thanet District Council,03/08/2016,414019,1500.00,,Michael Page Int Recruitment Ltd,PAG008,Corporate Resources and S151,Revenue,Services,Human Resources,
http://statistics.data.gov.uk/search?search=E07000114,Thanet District Council,03/08/2016,413897,650.00,,P R Bolder,BOL004,Operational Services,Revenue,"Repairs,  Alter & Mtce - Build",Construction-Repair And Maint,
http://statistics.data.gov.uk/search?search=E07000114,Thanet District Council,03/08/2016,414071,3000.00,,Project Salus Cic,PRO033,Community Services,Revenue,Grants & Subscriptions,Human Resources,
http://statistics.data.gov.uk/search?search=E07000114,Thanet District Council,03/08/2016,414072,21667.63,,REDACTED PERSONAL DATA,WAL037,Corporate Resources and S151,Balance Sheet,Capital Exp-Non Council Assets,Grants,
http://statistics.data.gov.uk/search?search=E07000114,Thanet District Council,03/08/2016,412366,1710.00,,Redactive Publishing Limited,RED020,Community Services,Revenue,Advertising Expenses,Facilities And Management Serv,
http://statistics.data.gov.uk/search?search=E07000114,Thanet District Council,03/08/2016,413883,300.00,,The Elms Club (Ramsgate) Ltd,ELM005,Corporate Governance,Revenue,Rents,Facilities And Management Serv,
http://statistics.data.gov.uk/search?search=E07000114,Thanet District Council,03/08/2016,413884,300.00,,The Elms Club (Ramsgate) Ltd,ELM005,Corporate Governance,Revenue,Rents,Facilities And Management Serv,
http://statistics.data.gov.uk/search?search=E07000114,Thanet District Council,03/08/2016,413419,3200.00,,The Glenwood Hotel,GLE007,Community Services,Revenue,Services,Housing Management,
http://statistics.data.gov.uk/search?search=E07000114,Thanet District Council,03/08/2016,413420,3041.66,,The Glenwood Hotel,GLE007,Community Services,Revenue,Services,Housing Management,
http://statistics.data.gov.uk/search?search=E07000114,Thanet District Council,03/08/2016,413421,2249.99,,The Glenwood Hotel,GLE007,Community Services,Revenue,Services,Housing Management,
http://statistics.data.gov.uk/search?search=E07000114,Thanet District Council,03/08/2016,413422,2374.98,,The Glenwood Hotel,GLE007,Community Services,Revenue,Services,Housing Management,
http://statistics.data.gov.uk/search?search=E07000114,Thanet District Council,03/08/2016,413423,2374.98,,The Glenwood Hotel,GLE007,Community Services,Revenue,Services,Housing Management,
http://statistics.data.gov.uk/search?search=E07000114,Thanet District Council,03/08/2016,413855,18768.95,,Trinity House,TRI002,Operational Services,Revenue,"Equip, Furniture And Materials",Maritime Services,
http://statistics.data.gov.uk/search?search=E07000114,Thanet District Council,03/08/2016,412175,9264.00,,Turner & Townsend Project Mgmt Ltd,TUR021,Corporate Resources and S151,Balance Sheet,Other Land And Buildings-Hra,Consultancy,
http://statistics.data.gov.uk/search?search=E07000114,Thanet District Council,03/08/2016,413714,950.00,,Uplands Engineering Ltd,UPL001,Operational Services,Revenue,"Equip, Furniture And Materials",Maritime Services,
http://statistics.data.gov.uk/search?search=E07000114,Thanet District Council,03/08/2016,413715,950.00,,Uplands Engineering Ltd,UPL001,Operational Services,Revenue,"Equip, Furniture And Materials",Maritime Services,
http://statistics.data.gov.uk/search?search=E07000114,Thanet District Council,03/08/2016,413716,530.00,,Uplands Engineering Ltd,UPL001,Operational Services,Revenue,"Equip, Furniture And Materials",Maritime Services,
http://statistics.data.gov.uk/search?search=E07000114,Thanet District Council,03/08/2016,413599,420.00,,Westward Ho Hotel,WES055,Community Services,Revenue,Services,Housing Management,
http://statistics.data.gov.uk/search?search=E07000114,Thanet District Council,09/08/2016,413709,14260.00,,4global Consulting Limited,4GL001,Community Services,Revenue,Services,Financial Services,
http://statistics.data.gov.uk/search?search=E07000114,Thanet District Council,09/08/2016,414122,14260.00,,4global Consulting Limited,4GL001,Community Services,Revenue,Services,Financial Services,
http://statistics.data.gov.uk/search?search=E07000114,Thanet District Council,09/08/2016,414068,4460.00,,Albion Fencing&Construction Kent Ltd,ALB005,Operational Services,Revenue,"Repairs,  Alter & Mtce - Build",Building Construction Material,
http://statistics.data.gov.uk/search?search=E07000114,Thanet District Council,09/08/2016,414252,915.00,,All About Asbestos Limited,ALL044,Corporate Resources and S151,Revenue,"Repairs,  Alter & Mtce - Build",Environmental Services,
http://statistics.data.gov.uk/search?search=E07000114,Thanet District Council,09/08/2016,413862,484.00,,All Access Ltd,ALL031,Community Services,Revenue,Services,Building Construction Material,
http://statistics.data.gov.uk/search?search=E07000114,Thanet District Council,09/08/2016,414126,280.00,,Benchmarq Limited,BEN013,Operational Services,Revenue,Communications & Computing,ICT,
http://statistics.data.gov.uk/search?search=E07000114,Thanet District Council,09/08/2016,412948,1839.75,,Campbell Reith Hill Llp,CAM013,Corporate Resources and S151,Balance Sheet,Investment Property For Lease,Consultancy,
http://statistics.data.gov.uk/search?search=E07000114,Thanet District Council,09/08/2016,412825,286.01,,Canon (Uk) Ltd,CAN021,Corporate Resources and S151,Revenue,"Equip, Furniture And Materials",Facilities And Management Serv,
http://statistics.data.gov.uk/search?search=E07000114,Thanet District Council,09/08/2016,414171,750.00,,Cieh,CIE001,Community Services,Revenue,Advertising Expenses,Human Resources,
http://statistics.data.gov.uk/search?search=E07000114,Thanet District Council,09/08/2016,414172,750.00,,Cieh,CIE001,Community Services,Revenue,Advertising Expenses,Human Resources,
http://statistics.data.gov.uk/search?search=E07000114,Thanet District Council,09/08/2016,414472,5760.00,,Cliftonville Community Centre,CLI035,Community Services,Revenue,Grants & Subscriptions,Facilities And Management Serv,
http://statistics.data.gov.uk/search?search=E07000114,Thanet District Council,09/08/2016,414015,2035.48,,Corporate Direct (Europe) Ltd,COR006,Corporate Resources and S151,Balance Sheet,Plant And Equipment,ICT,
http://statistics.data.gov.uk/search?search=E07000114,Thanet District Council,09/08/2016,413748,2124.41,,Dha Planning Limited,DHA002,Community Services,Revenue,Services,Consultancy,
http://statistics.data.gov.uk/search?search=E07000114,Thanet District Council,09/08/2016,414353,360.00,,Dover Counselling Centre,DOV014,East Kent Shared Services,Revenue,Employee Related Schemes,Healthcare,
http://statistics.data.gov.uk/search?search=E07000114,Thanet District Council,09/08/2016,413675,89285.00,,Dover District Council,DOV001,Corporate Resources and S151,Revenue,Services,Various Cats-Public Sector,
http://statistics.data.gov.uk/search?search=E07000114,Thanet District Council,09/08/2016,413676,17493.57,,Dover District Council,DOV001,Corporate Resources and S151,Revenue,Services,Various Cats-Public Sector,
http://statistics.data.gov.uk/search?search=E07000114,Thanet District Council,09/08/2016,414224,570.38,,E Saunders Margate Ltd,SAU001,Corporate Resources and S151,Revenue,"Repairs,  Alter & Mtce - Build",Construction-Repair And Maint,
http://statistics.data.gov.uk/search?search=E07000114,Thanet District Council,09/08/2016,414224,54.34,,E Saunders Margate Ltd,SAU001,Community Services,Revenue,"Repairs,  Alter & Mtce - Build",Construction-Repair And Maint,
http://statistics.data.gov.uk/search?search=E07000114,Thanet District Council,09/08/2016,414224,48.30,,E Saunders Margate Ltd,SAU001,Operational Services,Revenue,"Repairs,  Alter & Mtce - Build",Construction-Repair And Maint,
http://statistics.data.gov.uk/search?search=E07000114,Thanet District Council,09/08/2016,414226,344.74,,E Saunders Margate Ltd,SAU001,Operational Services,Revenue,"Repairs,  Alter & Mtce - Build",Construction-Repair And Maint,
http://statistics.data.gov.uk/search?search=E07000114,Thanet District Council,09/08/2016,414230,637.18,,E Saunders Margate Ltd,SAU001,Corporate Resources and S151,Revenue,"Repairs,  Alter & Mtce - Build",Construction-Repair And Maint,
http://statistics.data.gov.uk/search?search=E07000114,Thanet District Council,09/08/2016,414230,108.84,,E Saunders Margate Ltd,SAU001,Community Services,Revenue,"Repairs,  Alter & Mtce - Build",Construction-Repair And Maint,
http://statistics.data.gov.uk/search?search=E07000114,Thanet District Council,09/08/2016,414230,35.00,,E Saunders Margate Ltd,SAU001,Operational Services,Revenue,"Repairs,  Alter & Mtce - Build",Construction-Repair And Maint,
http://statistics.data.gov.uk/search?search=E07000114,Thanet District Council,09/08/2016,413697,299.54,,Edf Energy Customers Plc,EDF004,Operational Services,Revenue,Energy Costs,Utilities,
http://statistics.data.gov.uk/search?search=E07000114,Thanet District Council,09/08/2016,413698,4462.44,,Edf Energy Customers Plc,EDF004,Operational Services,Revenue,Energy Costs,Utilities,
http://statistics.data.gov.uk/search?search=E07000114,Thanet District Council,09/08/2016,413699,1577.69,,Edf Energy Customers Plc,EDF004,Corporate Resources and S151,Revenue,Energy Costs,Utilities,
http://statistics.data.gov.uk/search?search=E07000114,Thanet District Council,09/08/2016,413700,399.20,,Edf Energy Customers Plc,EDF004,Operational Services,Revenue,Energy Costs,Utilities,
http://statistics.data.gov.uk/search?search=E07000114,Thanet District Council,09/08/2016,413769,403.78,,Edf Energy Customers Plc,EDF004,Community Services,Revenue,Energy Costs,Utilities,
http://statistics.data.gov.uk/search?search=E07000114,Thanet District Council,09/08/2016,414441,563.61,,Edf Energy Customers Plc,EDF004,Operational Services,Revenue,Energy Costs,Utilities,
http://statistics.data.gov.uk/search?search=E07000114,Thanet District Council,09/08/2016,413809,481.64,,Evergreen Landscaping Gardening Ltd,EVE004,Corporate Resources and S151,Revenue,Grounds Mtce Costs,Horticultural,
http://statistics.data.gov.uk/search?search=E07000114,Thanet District Council,09/08/2016,414066,17147.76,,G & W Gardner Building Cont Ltd,GAR001,Corporate Resources and S151,Balance Sheet,Community Assets,Construction-Repair And Maint,
http://statistics.data.gov.uk/search?search=E07000114,Thanet District Council,09/08/2016,414255,395.00,,Guardian Security & Fire Ltd,GUA005,Operational Services,Revenue,"Repairs,  Alter & Mtce - Build",Health And Safety,
http://statistics.data.gov.uk/search?search=E07000114,Thanet District Council,09/08/2016,414391,4000.00,,Gva Grimley Limited,GVA001,Corporate Resources and S151,Balance Sheet,Other Land And Buildings-Hra,Consultancy,
http://statistics.data.gov.uk/search?search=E07000114,Thanet District Council,09/08/2016,414049,1120.00,,Hays Specialist Recruitment Ltd,HAY020,Corporate Resources and S151,Revenue,Services,Human Resources,
http://statistics.data.gov.uk/search?search=E07000114,Thanet District Council,09/08/2016,413816,309.75,,Hr Go (Kent) Ltd,HRG001,Corporate Resources and S151,Revenue,Agency Staff,Human Resources,
http://statistics.data.gov.uk/search?search=E07000114,Thanet District Council,09/08/2016,413901,1211.19,,Kent County Council (Kcs),KCC003,Operational Services,Revenue,Energy Costs,Facilities And Management Serv,
http://statistics.data.gov.uk/search?search=E07000114,Thanet District Council,09/08/2016,414127,2112.96,,Kent Fire & Rescue Service,KFI002,Operational Services,Revenue,Grants & Subscriptions,Various Cats-Public Sector,
http://statistics.data.gov.uk/search?search=E07000114,Thanet District Council,09/08/2016,414127,13500.00,,Kent Fire & Rescue Service,KFI002,Operational Services,Revenue,Services,Various Cats-Public Sector,
http://statistics.data.gov.uk/search?search=E07000114,Thanet District Council,09/08/2016,413753,4666.67,,Korn Ferry Hay Group Limited,KOR001,Corporate Resources and S151,Revenue,Services,Human Resources,
http://statistics.data.gov.uk/search?search=E07000114,Thanet District Council,09/08/2016,413753,2333.33,,Korn Ferry Hay Group Limited,KOR001,East Kent Shared Services,Revenue,Training,Human Resources,
http://statistics.data.gov.uk/search?search=E07000114,Thanet District Council,09/08/2016,411503,330.00,,M D Electrics,MDE001,Corporate Resources and S151,Revenue,"Repairs,  Alter & Mtce - Build",Building Construction Material,
http://statistics.data.gov.uk/search?search=E07000114,Thanet District Council,09/08/2016,413729,330.00,,M D Electrics,MDE001,Corporate Resources and S151,Revenue,"Repairs,  Alter & Mtce - Build",Building Construction Material,
http://statistics.data.gov.uk/search?search=E07000114,Thanet District Council,09/08/2016,414328,360.00,,M E Oram,ORA004,Operational Services,Revenue,Training,Human Resources,
http://statistics.data.gov.uk/search?search=E07000114,Thanet District Council,09/08/2016,413717,441.95,,Main Man Supplies Ltd,MAI001,Operational Services,Revenue,"Equip, Furniture And Materials",Clothing,
http://statistics.data.gov.uk/search?search=E07000114,Thanet District Council,09/08/2016,413723,575.96,,Morgan Jones Ltd,MOR001,Corporate Resources and S151,Revenue,Agency Staff,Human Resources,
http://statistics.data.gov.uk/search?search=E07000114,Thanet District Council,09/08/2016,414117,582.75,,Morgan Jones Ltd,MOR001,Community Services,Revenue,Agency Staff,Human Resources,
http://statistics.data.gov.uk/search?search=E07000114,Thanet District Council,09/08/2016,414120,441.32,,Morgan Jones Ltd,MOR001,Corporate Resources and S151,Revenue,Agency Staff,Human Resources,
http://statistics.data.gov.uk/search?search=E07000114,Thanet District Council,09/08/2016,414121,523.60,,Morgan Jones Ltd,MOR001,Corporate Resources and S151,Revenue,Agency Staff,Human Resources,
http://statistics.data.gov.uk/search?search=E07000114,Thanet District Council,09/08/2016,414408,2982.50,,Nathaniel Lichfield & Partners Ltd,LIC001,Community Services,Revenue,Services,Consultancy,
http://statistics.data.gov.uk/search?search=E07000114,Thanet District Council,09/08/2016,414036,4722.11,,National Express Ltd,NAT010,Community Services,Revenue,Services,Agency Payments,
http://statistics.data.gov.uk/search?search=E07000114,Thanet District Council,09/08/2016,414471,-298.80,,National Express Ltd,NAT010,Community Services,Revenue,Services,Agency Payments,
http://statistics.data.gov.uk/search?search=E07000114,Thanet District Council,09/08/2016,414184,4240.00,,Oscar Associates (Uk) Limited,OSC001,East Kent Shared Services,Revenue,Agency Staff,ICT,
http://statistics.data.gov.uk/search?search=E07000114,Thanet District Council,09/08/2016,414291,1325.00,,Oscar Associates (Uk) Limited,OSC001,East Kent Shared Services,Revenue,Agency Staff,ICT,
http://statistics.data.gov.uk/search?search=E07000114,Thanet District Council,09/08/2016,414031,807.18,,P A Grant Electrical Cont Limited,PAG010,Corporate Resources and S151,Balance Sheet,Other Land And Buildings-Hra,Building Construction Material,
http://statistics.data.gov.uk/search?search=E07000114,Thanet District Council,09/08/2016,413337,800.00,,P R Bolder,BOL004,Operational Services,Revenue,"Repairs,  Alter & Mtce - Build",Construction-Repair And Maint,
http://statistics.data.gov.uk/search?search=E07000114,Thanet District Council,09/08/2016,413854,263.32,,Page Plan Prints,PAG009,Community Services,Revenue,"Print, Stat And Gen Off Exps",Facilities And Management Serv,
http://statistics.data.gov.uk/search?search=E07000114,Thanet District Council,09/08/2016,413904,8625.00,,Paul Shadarevian,SHA031,Community Services,Revenue,Services,Human Resources,
http://statistics.data.gov.uk/search?search=E07000114,Thanet District Council,09/08/2016,414279,22695.89,,Profile Security Services Limited,PRO018,Operational Services,Revenue,Services,Facilities And Management Serv,
http://statistics.data.gov.uk/search?search=E07000114,Thanet District Council,09/08/2016,414282,454.00,,Profile Security Services Limited,PRO018,Operational Services,Revenue,Services,Facilities And Management Serv,
http://statistics.data.gov.uk/search?search=E07000114,Thanet District Council,09/08/2016,414360,876.00,,Profile Security Services Limited,PRO018,Operational Services,Revenue,Services,Facilities And Management Serv,
http://statistics.data.gov.uk/search?search=E07000114,Thanet District Council,09/08/2016,414392,4944.45,,Profile Security Services Limited,PRO018,Operational Services,Revenue,Services,Facilities And Management Serv,
http://statistics.data.gov.uk/search?search=E07000114,Thanet District Council,09/08/2016,414329,525.00,,R Cannon,CAN007,Operational Services,Revenue,Services,Maritime Services,
http://statistics.data.gov.uk/search?search=E07000114,Thanet District Council,09/08/2016,413315,524.60,,Rose Grogan,GRO024,Corporate Resources and S151,Revenue,Training,Legal Services,
http://statistics.data.gov.uk/search?search=E07000114,Thanet District Council,09/08/2016,413886,2070.00,,S & H Welding Services,SHW001,Operational Services,Revenue,"Repairs,  Alter & Mtce - Build",Cemetery And Crematorium,
http://statistics.data.gov.uk/search?search=E07000114,Thanet District Council,09/08/2016,414041,20000.00,,Salvation Army,SAL014,Community Services,Revenue,Grants & Subscriptions,Grants,
http://statistics.data.gov.uk/search?search=E07000114,Thanet District Council,09/08/2016,414323,1705.00,,South East England Councils,SEE017,Corporate Resources and S151,Revenue,Grants & Subscriptions,Financial Services,
http://statistics.data.gov.uk/search?search=E07000114,Thanet District Council,09/08/2016,413864,432.17,,Southern Electric,SEL007,Corporate Resources and S151,Revenue,Energy Costs,Utilities,
http://statistics.data.gov.uk/search?search=E07000114,Thanet District Council,09/08/2016,413867,284.82,,Southern Electric,SEL007,Corporate Resources and S151,Revenue,Energy Costs,Utilities,
http://statistics.data.gov.uk/search?search=E07000114,Thanet District Council,09/08/2016,414317,282.28,,Southern Electric,SEL007,Operational Services,Revenue,Energy Costs,Utilities,
http://statistics.data.gov.uk/search?search=E07000114,Thanet District Council,09/08/2016,414349,4.88,,Southern Electric,SEL007,Community Services,Revenue,Energy Costs,Utilities,
http://statistics.data.gov.uk/search?search=E07000114,Thanet District Council,09/08/2016,414349,507.60,,Southern Electric,SEL007,Operational Services,Revenue,Energy Costs,Utilities,
http://statistics.data.gov.uk/search?search=E07000114,Thanet District Council,09/08/2016,414338,785.42,,Southern Water,SWA001,Operational Services,Revenue,Water Services,Utilities,
http://statistics.data.gov.uk/search?search=E07000114,Thanet District Council,09/08/2016,414448,1813.88,,Southern Water,SWA001,Operational Services,Revenue,Water Services,Utilities,
http://statistics.data.gov.uk/search?search=E07000114,Thanet District Council,09/08/2016,414013,1030.00,,Strategic Integration Limited,STR037,Corporate Resources and S151,Revenue,Services,ICT,
http://statistics.data.gov.uk/search?search=E07000114,Thanet District Council,09/08/2016,413248,1125.50,,Streetmaster (S.Wales) Limited,STR001,Operational Services,Revenue,"Equip, Furniture And Materials",Highway Equipment And Material,
http://statistics.data.gov.uk/search?search=E07000114,Thanet District Council,09/08/2016,414406,750.00,,The Hyde Group,HYD017,Community Services,Revenue,Grants & Subscriptions,Non Trade Payee,
http://statistics.data.gov.uk/search?search=E07000114,Thanet District Council,09/08/2016,414055,410.00,,Trust For Thanet Archaeology,TRU008,Community Services,Revenue,"Equip, Furniture And Materials",Arts And Leisure Services,
http://statistics.data.gov.uk/search?search=E07000114,Thanet District Council,09/08/2016,413730,330.00,,Weather2 Limited,WEA008,Operational Services,Revenue,Communications & Computing,Environmental Services,
http://statistics.data.gov.uk/search?search=E07000114,Thanet District Council,10/08/2016,414661,120908.00,,Sharpe Pritchard Llp,SHA030,Corporate Resources and S151,Balance Sheet,Other Land And Buildings-Hra,Legal Services,
http://statistics.data.gov.uk/search?search=E07000114,Thanet District Council,11/08/2016,414740,1299.34,,Co-Operative Bank Paypoint,COO018,Corporate Resources and S151,Revenue,Services,Financial Services,
http://statistics.data.gov.uk/search?search=E07000114,Thanet District Council,11/08/2016,414740,433.11,,Co-Operative Bank Paypoint,COO018,Community Services,Revenue,Services,Financial Services,
http://statistics.data.gov.uk/search?search=E07000114,Thanet District Council,11/08/2016,414722,270791.00,,Maidstone Borough Council,MAI002,Corporate Resources and S151,Balance Sheet,Collection Fund,Various Cats-Public Sector,
http://statistics.data.gov.uk/search?search=E07000114,Thanet District Council,11/08/2016,414722,776364.00,,Maidstone Borough Council,MAI002,Corporate Resources and S151,Revenue,Revenue Financing,Various Cats-Public Sector,
http://statistics.data.gov.uk/search?search=E07000114,Thanet District Council,11/08/2016,414741,268.01,,Nat West Bank,NWE001,Corporate Resources and S151,Revenue,Services,Various Categories,
http://statistics.data.gov.uk/search?search=E07000114,Thanet District Council,11/08/2016,414712,189.40,,Public Works Loan Board,PWL001,Corporate Resources and S151,Balance Sheet,Borrowing Repayable>1 Yr,Investments And Loans,
http://statistics.data.gov.uk/search?search=E07000114,Thanet District Council,11/08/2016,414712,1178.92,,Public Works Loan Board,PWL001,Corporate Resources and S151,Balance Sheet,Debit Interest And Expenses,Investments And Loans,
http://statistics.data.gov.uk/search?search=E07000114,Thanet District Council,11/08/2016,414726,1654.72,,Santander,SAN017,Corporate Resources and S151,Revenue,Services,Various Categories,
http://statistics.data.gov.uk/search?search=E07000114,Thanet District Council,11/08/2016,414726,551.58,,Santander,SAN017,Community Services,Revenue,Services,Various Categories,
http://statistics.data.gov.uk/search?search=E07000114,Thanet District Council,11/08/2016,414737,979.63,,Santander,SAN017,Corporate Resources and S151,Revenue,Services,Various Categories,
http://statistics.data.gov.uk/search?search=E07000114,Thanet District Council,11/08/2016,414728,453.19,,Worldpay Ltd,WOR008,Corporate Resources and S151,Revenue,Services,Financial Services,
http://statistics.data.gov.uk/search?search=E07000114,Thanet District Council,11/08/2016,414730,499.48,,Worldpay Ltd,WOR008,Operational Services,Revenue,Services,Financial Services,
http://statistics.data.gov.uk/search?search=E07000114,Thanet District Council,11/08/2016,414733,2221.12,,Worldpay Ltd,WOR008,Corporate Resources and S151,Revenue,Services,Financial Services,
http://statistics.data.gov.uk/search?search=E07000114,Thanet District Council,11/08/2016,414735,2403.13,,Worldpay Ltd,WOR008,Corporate Resources and S151,Revenue,Services,Financial Services,
http://statistics.data.gov.uk/search?search=E07000114,Thanet District Council,15/08/2016,414743,579.87,,Allstar Business Solutions Ltd,ALL038,Operational Services,Revenue,Direct Transport Costs,Vehicle Management,
http://statistics.data.gov.uk/search?search=E07000114,Thanet District Council,15/08/2016,414744,273.82,,Allstar Business Solutions Ltd,ALL038,Operational Services,Revenue,Direct Transport Costs,Vehicle Management,
http://statistics.data.gov.uk/search?search=E07000114,Thanet District Council,15/08/2016,414746,570.67,,Allstar Business Solutions Ltd,ALL038,Operational Services,Revenue,Direct Transport Costs,Vehicle Management,
http://statistics.data.gov.uk/search?search=E07000114,Thanet District Council,16/08/2016,413848,445.84,,Advanced Business Solutions,COA011,Corporate Resources and S151,Revenue,Communications & Computing,ICT,
http://statistics.data.gov.uk/search?search=E07000114,Thanet District Council,16/08/2016,413849,265.87,,Advanced Business Solutions,COA011,Corporate Resources and S151,Revenue,Communications & Computing,ICT,
http://statistics.data.gov.uk/search?search=E07000114,Thanet District Council,16/08/2016,414363,759.18,,Advanced Labelling Limited,ADV005,Operational Services,Revenue,"Equip, Furniture And Materials",Facilities And Management Serv,
http://statistics.data.gov.uk/search?search=E07000114,Thanet District Council,16/08/2016,413141,1400.00,,Albion Fencing&Construction Kent Ltd,ALB005,Operational Services,Revenue,"Repairs,  Alter & Mtce - Build",Building Construction Material,
http://statistics.data.gov.uk/search?search=E07000114,Thanet District Council,16/08/2016,414032,442.50,,Andy Morris,MOR028,Community Services,Revenue,Services,Arts And Leisure Services,
http://statistics.data.gov.uk/search?search=E07000114,Thanet District Council,16/08/2016,414033,300.00,,Andy Morris,MOR028,Community Services,Revenue,Services,Arts And Leisure Services,
http://statistics.data.gov.uk/search?search=E07000114,Thanet District Council,16/08/2016,413802,405.00,,Archant Community Media Limited,ARC012,Community Services,Revenue,Miscellaneous Expenses,Facilities And Management Serv,
http://statistics.data.gov.uk/search?search=E07000114,Thanet District Council,16/08/2016,414277,4418.11,,Ats Euromaster Ltd,ATS002,Operational Services,Revenue,Direct Transport Costs,Vehicle Management,
http://statistics.data.gov.uk/search?search=E07000114,Thanet District Council,16/08/2016,411795,5150.00,,Beach Clean Network Limited,BEA022,Operational Services,Revenue,"Repairs,  Alter & Mtce - Build",Environmental Services,
http://statistics.data.gov.uk/search?search=E07000114,Thanet District Council,16/08/2016,414473,555.00,,Best-In-Tents,BES001,Community Services,Revenue,Services,Arts And Leisure Services,
http://statistics.data.gov.uk/search?search=E07000114,Thanet District Council,16/08/2016,414449,680.25,,Bt Payment Services Ltd,BTE003,Operational Services,Revenue,Communications & Computing,ICT,
http://statistics.data.gov.uk/search?search=E07000114,Thanet District Council,16/08/2016,414037,457.22,,Castle Automotive & Eng Supp Ltd,CAS024,Operational Services,Revenue,"Equip, Furniture And Materials",Vehicle Management,
http://statistics.data.gov.uk/search?search=E07000114,Thanet District Council,16/08/2016,414590,13325.00,,Civica Uk Ltd,CIV003,East Kent Shared Services,Revenue,Communications & Computing,ICT,
http://statistics.data.gov.uk/search?search=E07000114,Thanet District Council,16/08/2016,413622,545.00,,Cobalt Telephone Technologies Ltd,COB002,Operational Services,Revenue,Services,ICT,
http://statistics.data.gov.uk/search?search=E07000114,Thanet District Council,16/08/2016,413623,431.25,,Cobalt Telephone Technologies Ltd,COB002,Operational Services,Revenue,Services,ICT,
http://statistics.data.gov.uk/search?search=E07000114,Thanet District Council,16/08/2016,414256,444.73,,Cobalt Telephone Technologies Ltd,COB002,Operational Services,Revenue,Services,ICT,
http://statistics.data.gov.uk/search?search=E07000114,Thanet District Council,16/08/2016,414670,493.98,,Commercial Services Trading Ltd,COM048,Operational Services,Revenue,Direct Transport Costs,Various Cats-Public Sector,
http://statistics.data.gov.uk/search?search=E07000114,Thanet District Council,16/08/2016,414597,365.00,,Corporate Direct (Europe) Ltd,COR006,Corporate Resources and S151,Balance Sheet,Plant And Equipment,ICT,
http://statistics.data.gov.uk/search?search=E07000114,Thanet District Council,16/08/2016,414386,25264.75,,Crown Estate,CRO022,Operational Services,Revenue,Rents,Maritime Services,
http://statistics.data.gov.uk/search?search=E07000114,Thanet District Council,16/08/2016,414387,31450.25,,Crown Estate,CRO022,Operational Services,Revenue,Rents,Maritime Services,
http://statistics.data.gov.uk/search?search=E07000114,Thanet District Council,16/08/2016,414388,4877.50,,Crown Estate,CRO022,Operational Services,Revenue,Rents,Maritime Services,
http://statistics.data.gov.uk/search?search=E07000114,Thanet District Council,16/08/2016,414855,4286.84,,Cure Developments Limited,CUR005,Corporate Resources and S151,Balance Sheet,Capital Exp-Non Council Assets,Grants,
http://statistics.data.gov.uk/search?search=E07000114,Thanet District Council,16/08/2016,414262,855.39,,Dennis Eagle Ltd,DEN005,Operational Services,Revenue,Direct Transport Costs,Vehicle Management,
http://statistics.data.gov.uk/search?search=E07000114,Thanet District Council,16/08/2016,414841,289.00,,Diocesan Registry,DIO001,Operational Services,Revenue,"Repairs,  Alter & Mtce - Build",Cemetery And Crematorium,
http://statistics.data.gov.uk/search?search=E07000114,Thanet District Council,16/08/2016,414137,2200.00,,Disclosure And Barring Service,DIS017,Community Services,Revenue,"Equip, Furniture And Materials",Human Resources,
http://statistics.data.gov.uk/search?search=E07000114,Thanet District Council,16/08/2016,413767,2340.00,,Dover District Council,DOV001,Corporate Resources and S151,Revenue,Communications & Computing,Various Cats-Public Sector,
http://statistics.data.gov.uk/search?search=E07000114,Thanet District Council,16/08/2016,413767,35948.20,,Dover District Council,DOV001,Corporate Resources and S151,Balance Sheet,Plant And Equipment,Various Cats-Public Sector,
http://statistics.data.gov.uk/search?search=E07000114,Thanet District Council,16/08/2016,414635,347.90,,Dover District Council,DOV001,East Kent Shared Services,Revenue,Employee Related Schemes,Various Cats-Public Sector,
http://statistics.data.gov.uk/search?search=E07000114,Thanet District Council,16/08/2016,414845,1050.00,,Dr Alexander Marshall,MAR100,Operational Services,Revenue,Services,Cemetery And Crematorium,
http://statistics.data.gov.uk/search?search=E07000114,Thanet District Council,16/08/2016,414846,2000.00,,Dr R K Chhabra,CHH001,Operational Services,Revenue,Services,Cemetery And Crematorium,
http://statistics.data.gov.uk/search?search=E07000114,Thanet District Council,16/08/2016,414672,327.50,,Dura Composites,DUR002,Operational Services,Revenue,"Repairs,  Alter & Mtce - Build",Building Construction Material,
http://statistics.data.gov.uk/search?search=E07000114,Thanet District Council,16/08/2016,414229,339.00,,E Saunders Margate Ltd,SAU001,Operational Services,Revenue,"Repairs,  Alter & Mtce - Build",Construction-Repair And Maint,
http://statistics.data.gov.uk/search?search=E07000114,Thanet District Council,16/08/2016,414232,306.44,,East Kent Components Ltd,EKC006,Operational Services,Revenue,Direct Transport Costs,Vehicle Management,
http://statistics.data.gov.uk/search?search=E07000114,Thanet District Council,16/08/2016,414656,280.68,,Edf Energy Customers Plc,EDF004,Corporate Resources and S151,Revenue,Energy Costs,Utilities,
http://statistics.data.gov.uk/search?search=E07000114,Thanet District Council,16/08/2016,414169,3511.80,,Egbert H Taylor & Company Ltd,TAY005,Operational Services,Revenue,"Equip, Furniture And Materials",Environmental Services,
http://statistics.data.gov.uk/search?search=E07000114,Thanet District Council,16/08/2016,414170,1487.58,,Egbert H Taylor & Company Ltd,TAY005,Operational Services,Revenue,"Equip, Furniture And Materials",Environmental Services,
http://statistics.data.gov.uk/search?search=E07000114,Thanet District Council,16/08/2016,414030,1577.35,,Eks Office Equipment,EKS004,Corporate Resources and S151,Revenue,"Equip, Furniture And Materials",Furniture And Soft Furnishings,
http://statistics.data.gov.uk/search?search=E07000114,Thanet District Council,16/08/2016,414052,332.60,,Ernest Doe & Sons Ltd,ERN003,Operational Services,Revenue,"Equip, Furniture And Materials",Horticultural,
http://statistics.data.gov.uk/search?search=E07000114,Thanet District Council,16/08/2016,414653,613.19,,Eye Lighting Europe Limited,EYE004,Operational Services,Revenue,"Equip, Furniture And Materials",Building Construction Material,
http://statistics.data.gov.uk/search?search=E07000114,Thanet District Council,16/08/2016,414115,637.69,,F R Jones & Son,JON020,Operational Services,Revenue,"Equip, Furniture And Materials",Horticultural,
http://statistics.data.gov.uk/search?search=E07000114,Thanet District Council,16/08/2016,414116,-637.69,,F R Jones & Son,JON020,Operational Services,Revenue,"Equip, Furniture And Materials",Horticultural,
http://statistics.data.gov.uk/search?search=E07000114,Thanet District Council,16/08/2016,414212,605.00,,Florence Court Hotel,FLO003,Community Services,Revenue,Services,Housing Management,
http://statistics.data.gov.uk/search?search=E07000114,Thanet District Council,16/08/2016,414213,1085.00,,Florence Court Hotel,FLO003,Community Services,Revenue,Services,Housing Management,
http://statistics.data.gov.uk/search?search=E07000114,Thanet District Council,16/08/2016,414214,930.00,,Florence Court Hotel,FLO003,Community Services,Revenue,Services,Housing Management,
http://statistics.data.gov.uk/search?search=E07000114,Thanet District Council,16/08/2016,414215,1050.00,,Florence Court Hotel,FLO003,Community Services,Revenue,Services,Housing Management,
http://statistics.data.gov.uk/search?search=E07000114,Thanet District Council,16/08/2016,414217,930.00,,Florence Court Hotel,FLO003,Community Services,Revenue,Services,Housing Management,
http://statistics.data.gov.uk/search?search=E07000114,Thanet District Council,16/08/2016,414265,930.00,,Florence Court Hotel,FLO003,Community Services,Revenue,Services,Housing Management,
http://statistics.data.gov.uk/search?search=E07000114,Thanet District Council,16/08/2016,414266,930.00,,Florence Court Hotel,FLO003,Community Services,Revenue,Services,Housing Management,
http://statistics.data.gov.uk/search?search=E07000114,Thanet District Council,16/08/2016,414267,980.00,,Florence Court Hotel,FLO003,Community Services,Revenue,Services,Housing Management,
http://statistics.data.gov.uk/search?search=E07000114,Thanet District Council,16/08/2016,414268,550.00,,Florence Court Hotel,FLO003,Community Services,Revenue,Services,Housing Management,
http://statistics.data.gov.uk/search?search=E07000114,Thanet District Council,16/08/2016,414269,1120.00,,Florence Court Hotel,FLO003,Community Services,Revenue,Services,Housing Management,
http://statistics.data.gov.uk/search?search=E07000114,Thanet District Council,16/08/2016,414270,850.00,,Florence Court Hotel,FLO003,Community Services,Revenue,Services,Housing Management,
http://statistics.data.gov.uk/search?search=E07000114,Thanet District Council,16/08/2016,414271,490.00,,Florence Court Hotel,FLO003,Community Services,Revenue,Services,Housing Management,
http://statistics.data.gov.uk/search?search=E07000114,Thanet District Council,16/08/2016,414272,300.00,,Florence Court Hotel,FLO003,Community Services,Revenue,Services,Housing Management,
http://statistics.data.gov.uk/search?search=E07000114,Thanet District Council,16/08/2016,414273,990.00,,Florence Court Hotel,FLO003,Community Services,Revenue,Services,Housing Management,
http://statistics.data.gov.uk/search?search=E07000114,Thanet District Council,16/08/2016,414274,510.00,,Florence Court Hotel,FLO003,Community Services,Revenue,Services,Housing Management,
http://statistics.data.gov.uk/search?search=E07000114,Thanet District Council,16/08/2016,414275,1085.00,,Florence Court Hotel,FLO003,Community Services,Revenue,Services,Housing Management,
http://statistics.data.gov.uk/search?search=E07000114,Thanet District Council,16/08/2016,413856,963.00,,Freight Transport Association,FRE007,Operational Services,Revenue,Grants & Subscriptions,Human Resources,
http://statistics.data.gov.uk/search?search=E07000114,Thanet District Council,16/08/2016,414852,500.00,,George Mccabe,MCC001,Corporate Resources and S151,Balance Sheet,Rechargeable Works,Environmental Services,
http://statistics.data.gov.uk/search?search=E07000114,Thanet District Council,16/08/2016,413607,900.00,,Gulliver'S Truck Hire Limited,GUL001,Operational Services,Revenue,Cont Hire & Operating Lease,Vehicle Management,
http://statistics.data.gov.uk/search?search=E07000114,Thanet District Council,16/08/2016,414014,900.00,,Gulliver'S Truck Hire Limited,GUL001,Operational Services,Revenue,Cont Hire & Operating Lease,Vehicle Management,
http://statistics.data.gov.uk/search?search=E07000114,Thanet District Council,16/08/2016,414385,800.00,,Hastings Borough Council,HAS002,Community Services,Revenue,Services,Various Cats-Public Sector,
http://statistics.data.gov.uk/search?search=E07000114,Thanet District Council,16/08/2016,413813,2167.46,,Hr Go (Kent) Ltd,HRG001,Operational Services,Revenue,Agency Staff,Human Resources,
http://statistics.data.gov.uk/search?search=E07000114,Thanet District Council,16/08/2016,413817,1133.13,,Hr Go (Kent) Ltd,HRG001,Operational Services,Revenue,Agency Staff,Human Resources,
http://statistics.data.gov.uk/search?search=E07000114,Thanet District Council,16/08/2016,413818,839.51,,Hr Go (Kent) Ltd,HRG001,Operational Services,Revenue,Agency Staff,Human Resources,
http://statistics.data.gov.uk/search?search=E07000114,Thanet District Council,16/08/2016,413819,1406.28,,Hr Go (Kent) Ltd,HRG001,Operational Services,Revenue,Agency Staff,Human Resources,
http://statistics.data.gov.uk/search?search=E07000114,Thanet District Council,16/08/2016,414190,7539.43,,Hr Go (Kent) Ltd,HRG001,Operational Services,Revenue,Agency Staff,Human Resources,
http://statistics.data.gov.uk/search?search=E07000114,Thanet District Council,16/08/2016,414278,13797.56,,Hr Go (Kent) Ltd,HRG001,Operational Services,Revenue,Agency Staff,Human Resources,
http://statistics.data.gov.uk/search?search=E07000114,Thanet District Council,16/08/2016,414359,11609.91,,Hr Go (Kent) Ltd,HRG001,Operational Services,Revenue,Agency Staff,Human Resources,
http://statistics.data.gov.uk/search?search=E07000114,Thanet District Council,16/08/2016,414464,285.56,,Hr Go (Kent) Ltd,HRG001,Operational Services,Revenue,Agency Staff,Human Resources,
http://statistics.data.gov.uk/search?search=E07000114,Thanet District Council,16/08/2016,414465,309.75,,Hr Go (Kent) Ltd,HRG001,Corporate Resources and S151,Revenue,Agency Staff,Human Resources,
http://statistics.data.gov.uk/search?search=E07000114,Thanet District Council,16/08/2016,414467,1829.52,,Hr Go (Kent) Ltd,HRG001,Operational Services,Revenue,Agency Staff,Human Resources,
http://statistics.data.gov.uk/search?search=E07000114,Thanet District Council,16/08/2016,414470,529.47,,Hr Go (Kent) Ltd,HRG001,Community Services,Revenue,Agency Staff,Human Resources,
http://statistics.data.gov.uk/search?search=E07000114,Thanet District Council,16/08/2016,414185,1748.31,,Hydro-Cleansing Ltd,HYD012,Operational Services,Revenue,"Repairs,  Alter & Mtce - Build",Building Construction Material,
http://statistics.data.gov.uk/search?search=E07000114,Thanet District Council,16/08/2016,413429,431.76,,Jewson Ltd,JEW001,Operational Services,Revenue,"Equip, Furniture And Materials",Building Construction Material,
http://statistics.data.gov.uk/search?search=E07000114,Thanet District Council,16/08/2016,414430,284.35,,Jewson Ltd,JEW001,Operational Services,Revenue,"Equip, Furniture And Materials",Building Construction Material,
http://statistics.data.gov.uk/search?search=E07000114,Thanet District Council,16/08/2016,414576,4263.00,,Kent County Council,KCC002,Community Services,Revenue,Services,Various Cats-Public Sector,
http://statistics.data.gov.uk/search?search=E07000114,Thanet District Council,16/08/2016,414601,330.00,,Kent County Council,KCC002,Operational Services,Revenue,Grants & Subscriptions,Various Cats-Public Sector,
http://statistics.data.gov.uk/search?search=E07000114,Thanet District Council,16/08/2016,414615,5496.14,,Kent County Council (Kcs),KCC003,Corporate Resources and S151,Revenue,Energy Costs,Facilities And Management Serv,
http://statistics.data.gov.uk/search?search=E07000114,Thanet District Council,16/08/2016,414616,5024.83,,Kent County Council (Kcs),KCC003,Operational Services,Revenue,Energy Costs,Facilities And Management Serv,
http://statistics.data.gov.uk/search?search=E07000114,Thanet District Council,16/08/2016,414617,2020.85,,Kent County Council (Kcs),KCC003,Operational Services,Revenue,Energy Costs,Facilities And Management Serv,
http://statistics.data.gov.uk/search?search=E07000114,Thanet District Council,16/08/2016,414637,286.20,,Kent County Council (Kcs),KCC003,Corporate Resources and S151,Revenue,"Repairs,  Alter & Mtce - Build",Facilities And Management Serv,
http://statistics.data.gov.uk/search?search=E07000114,Thanet District Council,16/08/2016,414690,576.60,,Kent County Council (Kcs),KCC003,Corporate Resources and S151,Revenue,Energy Costs,Facilities And Management Serv,
http://statistics.data.gov.uk/search?search=E07000114,Thanet District Council,16/08/2016,414693,-257.17,,Kent County Council (Kcs),KCC003,Operational Services,Revenue,Energy Costs,Facilities And Management Serv,
http://statistics.data.gov.uk/search?search=E07000114,Thanet District Council,16/08/2016,414698,336.32,,Kent County Council (Kcs),KCC003,Corporate Resources and S151,Revenue,Energy Costs,Facilities And Management Serv,
http://statistics.data.gov.uk/search?search=E07000114,Thanet District Council,16/08/2016,414701,1672.43,,Kent County Council (Kcs),KCC003,Operational Services,Revenue,Energy Costs,Facilities And Management Serv,
http://statistics.data.gov.uk/search?search=E07000114,Thanet District Council,16/08/2016,414702,366.84,,Kent County Council (Kcs),KCC003,Community Services,Revenue,Energy Costs,Facilities And Management Serv,
http://statistics.data.gov.uk/search?search=E07000114,Thanet District Council,16/08/2016,414321,7656.70,,Kingdom Security Limited,KIN039,Operational Services,Revenue,Services,Street And Traffic Management,
http://statistics.data.gov.uk/search?search=E07000114,Thanet District Council,16/08/2016,414567,4306.76,,Level 3 Communications (Uk) Ltd,LEV005,Corporate Resources and S151,Balance Sheet,Telephone Holding Account,ICT,
http://statistics.data.gov.uk/search?search=E07000114,Thanet District Council,16/08/2016,413267,2159.43,,Lobster Van Hire Ltd,LOB001,Operational Services,Revenue,Cont Hire & Operating Lease,Vehicle Management,
http://statistics.data.gov.uk/search?search=E07000114,Thanet District Council,16/08/2016,414263,376.00,,Lyreco Uk Limited,LYR001,Corporate Resources and S151,Revenue,"Print, Stat And Gen Off Exps",Stationery,
http://statistics.data.gov.uk/search?search=E07000114,Thanet District Council,16/08/2016,414209,315.00,,Magees Guesthouse,MAG009,Community Services,Revenue,Services,Grants,
http://statistics.data.gov.uk/search?search=E07000114,Thanet District Council,16/08/2016,414579,450.00,,Magees Guesthouse,MAG009,Community Services,Revenue,Services,Grants,
http://statistics.data.gov.uk/search?search=E07000114,Thanet District Council,16/08/2016,413745,591.00,,Maha Uk Ltd,MAH002,Operational Services,Revenue,"Equip, Furniture And Materials",ICT,
http://statistics.data.gov.uk/search?search=E07000114,Thanet District Council,16/08/2016,413749,9350.00,,Maulyte Limited,MAU004,Corporate Resources and S151,Balance Sheet,Repairs And Mtce Holding A/C,Construction-Repair And Maint,
http://statistics.data.gov.uk/search?search=E07000114,Thanet District Council,16/08/2016,413705,316.69,,Mears Ltd,MEA003,Operational Services,Revenue,"Repairs,  Alter & Mtce - Build",Construction-Repair And Maint,
http://statistics.data.gov.uk/search?search=E07000114,Thanet District Council,16/08/2016,413706,322.11,,Mears Ltd,MEA003,Operational Services,Revenue,"Repairs,  Alter & Mtce - Build",Construction-Repair And Maint,
http://statistics.data.gov.uk/search?search=E07000114,Thanet District Council,16/08/2016,413708,265.37,,Mears Ltd,MEA003,Operational Services,Revenue,"Repairs,  Alter & Mtce - Build",Construction-Repair And Maint,
http://statistics.data.gov.uk/search?search=E07000114,Thanet District Council,16/08/2016,414595,565.68,,Mears Ltd,MEA003,Corporate Resources and S151,Revenue,"Repairs,  Alter & Mtce - Build",Construction-Repair And Maint,
http://statistics.data.gov.uk/search?search=E07000114,Thanet District Council,16/08/2016,414568,1524.75,,Med Clean South Ltd,MED015,Operational Services,Revenue,"Repairs,  Alter & Mtce - Build",Cleaning And Janitorial,
http://statistics.data.gov.uk/search?search=E07000114,Thanet District Council,16/08/2016,414569,7236.19,,Med Clean South Ltd,MED015,Operational Services,Revenue,Cleaning & Domestic Supplies,Cleaning And Janitorial,
http://statistics.data.gov.uk/search?search=E07000114,Thanet District Council,16/08/2016,414124,1350.00,,Michael Page Int Recruitment Ltd,PAG008,Corporate Resources and S151,Revenue,Services,Human Resources,
http://statistics.data.gov.uk/search?search=E07000114,Thanet District Council,16/08/2016,414666,1258.00,,Michael Page Int Recruitment Ltd,PAG008,Corporate Resources and S151,Revenue,Agency Staff,Human Resources,
http://statistics.data.gov.uk/search?search=E07000114,Thanet District Council,16/08/2016,414667,1200.00,,Michael Page Int Recruitment Ltd,PAG008,Corporate Resources and S151,Revenue,Services,Human Resources,
http://statistics.data.gov.uk/search?search=E07000114,Thanet District Council,16/08/2016,414004,287.50,,Michelle Williams,WIL064,Community Services,Revenue,Services,Arts And Leisure Services,
http://statistics.data.gov.uk/search?search=E07000114,Thanet District Council,16/08/2016,414006,292.00,,Michelle Williams,WIL064,Community Services,Revenue,Services,Arts And Leisure Services,
http://statistics.data.gov.uk/search?search=E07000114,Thanet District Council,16/08/2016,414618,396.90,,Morgan Jones Ltd,MOR001,Corporate Resources and S151,Revenue,Agency Staff,Human Resources,
http://statistics.data.gov.uk/search?search=E07000114,Thanet District Council,16/08/2016,414620,582.75,,Morgan Jones Ltd,MOR001,Community Services,Revenue,Agency Staff,Human Resources,
http://statistics.data.gov.uk/search?search=E07000114,Thanet District Council,16/08/2016,414622,523.60,,Morgan Jones Ltd,MOR001,Corporate Resources and S151,Revenue,Agency Staff,Human Resources,
http://statistics.data.gov.uk/search?search=E07000114,Thanet District Council,16/08/2016,413356,18056.74,,Ocs Group Uk Ltd T/A Fountains,OCS005,Operational Services,Revenue,Cleaning & Domestic Supplies,Cleaning And Janitorial,
http://statistics.data.gov.uk/search?search=E07000114,Thanet District Council,16/08/2016,413357,695.77,,Ocs Group Uk Ltd T/A Fountains,OCS005,Operational Services,Revenue,Fixtures & Fittings,Cleaning And Janitorial,
http://statistics.data.gov.uk/search?search=E07000114,Thanet District Council,16/08/2016,413359,492.64,,Ocs Group Uk Ltd T/A Fountains,OCS005,Operational Services,Revenue,Fixtures & Fittings,Cleaning And Janitorial,
http://statistics.data.gov.uk/search?search=E07000114,Thanet District Council,16/08/2016,413360,376.67,,Ocs Group Uk Ltd T/A Fountains,OCS005,Operational Services,Revenue,Fixtures & Fittings,Cleaning And Janitorial,
http://statistics.data.gov.uk/search?search=E07000114,Thanet District Council,16/08/2016,414290,1470.00,,Ovenden Plant Hire Ltd,OVE002,Operational Services,Revenue,Cont Hire & Operating Lease,Vehicle Management,
http://statistics.data.gov.uk/search?search=E07000114,Thanet District Council,16/08/2016,414180,12230.00,,Paramount Ind Property Services Llp,PAR074,Community Services,Revenue,Services,Rent Deposits,
http://statistics.data.gov.uk/search?search=E07000114,Thanet District Council,16/08/2016,413850,90.00,,Parkeon Limited,PAR063,Community Services,Revenue,"Equip, Furniture And Materials",Street And Traffic Management,
http://statistics.data.gov.uk/search?search=E07000114,Thanet District Council,16/08/2016,413850,1134.00,,Parkeon Limited,PAR063,Operational Services,Revenue,"Equip, Furniture And Materials",Street And Traffic Management,
http://statistics.data.gov.uk/search?search=E07000114,Thanet District Council,16/08/2016,414260,2006.85,,Patrol,PAT004,Operational Services,Revenue,Services,Street And Traffic Management,
http://statistics.data.gov.uk/search?search=E07000114,Thanet District Council,16/08/2016,414584,1117.00,,Peer 1 (Uk) Limited,PEE003,East Kent Shared Services,Revenue,Communications & Computing,ICT,
http://statistics.data.gov.uk/search?search=E07000114,Thanet District Council,16/08/2016,414038,7045.50,,Planning Solutions Consulting Ltd,PLA029,Community Services,Revenue,Services,Consultancy,
http://statistics.data.gov.uk/search?search=E07000114,Thanet District Council,16/08/2016,414574,408.48,,Probrand Ltd,PRO012,Operational Services,Revenue,"Equip, Furniture And Materials",ICT,
http://statistics.data.gov.uk/search?search=E07000114,Thanet District Council,16/08/2016,414903,15800.00,,Public Works Loan Board,PWL001,Corporate Resources and S151,Balance Sheet,Debit Interest And Expenses,Investments And Loans,
http://statistics.data.gov.uk/search?search=E07000114,Thanet District Council,16/08/2016,413752,880.00,,R J Broadley Tree Surgery,RJB002,Operational Services,Revenue,Grounds Mtce Costs,Horticultural,
http://statistics.data.gov.uk/search?search=E07000114,Thanet District Council,16/08/2016,413843,1500.00,,R J Broadley Tree Surgery,RJB002,Operational Services,Revenue,Grounds Mtce Costs,Horticultural,
http://statistics.data.gov.uk/search?search=E07000114,Thanet District Council,16/08/2016,414003,950.00,,R J Broadley Tree Surgery,RJB002,Operational Services,Revenue,Grounds Mtce Costs,Horticultural,
http://statistics.data.gov.uk/search?search=E07000114,Thanet District Council,16/08/2016,414161,315.84,,Rexel Uk Limited,REX003,Operational Services,Revenue,"Repairs,  Alter & Mtce - Build",Building Construction Material,
http://statistics.data.gov.uk/search?search=E07000114,Thanet District Council,16/08/2016,414680,1663.02,,Royal Mail,ROY004,Corporate Governance,Revenue,Communications & Computing,Mail Services,
http://statistics.data.gov.uk/search?search=E07000114,Thanet District Council,16/08/2016,414681,14.85,,Royal Mail,ROY004,Corporate Governance,Revenue,Communications & Computing,Mail Services,
http://statistics.data.gov.uk/search?search=E07000114,Thanet District Council,16/08/2016,414682,627.60,,Royal Mail,ROY004,Corporate Governance,Revenue,Communications & Computing,Mail Services,
http://statistics.data.gov.uk/search?search=E07000114,Thanet District Council,16/08/2016,409223,280.00,,Sands Heritage Ltd (In Admin),SAN030,Community Services,Revenue,Rents,Various Categories,
http://statistics.data.gov.uk/search?search=E07000114,Thanet District Council,16/08/2016,414440,1686.08,,Southern Water,SWA001,Operational Services,Revenue,Water Services,Utilities,
http://statistics.data.gov.uk/search?search=E07000114,Thanet District Council,16/08/2016,414750,2297.62,,Southern Water,SWA001,Operational Services,Revenue,Water Services,Utilities,
http://statistics.data.gov.uk/search?search=E07000114,Thanet District Council,16/08/2016,414752,2159.88,,Southern Water,SWA001,Operational Services,Revenue,Water Services,Utilities,
http://statistics.data.gov.uk/search?search=E07000114,Thanet District Council,16/08/2016,414753,410.54,,Southern Water,SWA001,Operational Services,Revenue,Water Services,Utilities,
http://statistics.data.gov.uk/search?search=E07000114,Thanet District Council,16/08/2016,414754,1307.44,,Southern Water,SWA001,Operational Services,Revenue,Water Services,Utilities,
http://statistics.data.gov.uk/search?search=E07000114,Thanet District Council,16/08/2016,414756,287.46,,Southern Water,SWA001,Operational Services,Revenue,Water Services,Utilities,
http://statistics.data.gov.uk/search?search=E07000114,Thanet District Council,16/08/2016,414758,550.75,,Southern Water,SWA001,Corporate Resources and S151,Revenue,Water Services,Utilities,
http://statistics.data.gov.uk/search?search=E07000114,Thanet District Council,16/08/2016,414759,2078.67,,Southern Water,SWA001,Operational Services,Revenue,Water Services,Utilities,
http://statistics.data.gov.uk/search?search=E07000114,Thanet District Council,16/08/2016,414054,350.00,,Standfast Burglar Alarm Co (Ek) Ltd,STA003,Corporate Resources and S151,Revenue,"Equip, Furniture And Materials",Facilities And Management Serv,
http://statistics.data.gov.uk/search?search=E07000114,Thanet District Council,16/08/2016,414364,323.69,,Stokes Bros,STO001,Operational Services,Revenue,"Repairs,  Alter & Mtce - Build",Building Construction Material,
http://statistics.data.gov.uk/search?search=E07000114,Thanet District Council,16/08/2016,414141,2565.00,,Straight Manufacturing Limited,STR038,Operational Services,Revenue,"Equip, Furniture And Materials",Environmental Services,
http://statistics.data.gov.uk/search?search=E07000114,Thanet District Council,16/08/2016,414186,10752.00,,Straight Manufacturing Limited,STR038,Operational Services,Revenue,"Equip, Furniture And Materials",Environmental Services,
http://statistics.data.gov.uk/search?search=E07000114,Thanet District Council,16/08/2016,414674,1200.00,,The Bradley Group Limited,BRA028,Community Services,Revenue,Direct Transport Costs,Human Resources,
http://statistics.data.gov.uk/search?search=E07000114,Thanet District Council,16/08/2016,414844,500.00,,The Financial Times Limited,FIN013,Community Services,Revenue,Advertising Expenses,Facilities And Management Serv,
http://statistics.data.gov.uk/search?search=E07000114,Thanet District Council,16/08/2016,414204,2541.65,,The Glenwood Hotel,GLE007,Community Services,Revenue,Services,Housing Management,
http://statistics.data.gov.uk/search?search=E07000114,Thanet District Council,16/08/2016,414205,2416.66,,The Glenwood Hotel,GLE007,Community Services,Revenue,Services,Housing Management,
http://statistics.data.gov.uk/search?search=E07000114,Thanet District Council,16/08/2016,414206,562.50,,The Glenwood Hotel,GLE007,Community Services,Revenue,Services,Housing Management,
http://statistics.data.gov.uk/search?search=E07000114,Thanet District Council,16/08/2016,414315,2512.49,,The Glenwood Hotel,GLE007,Community Services,Revenue,Services,Housing Management,
http://statistics.data.gov.uk/search?search=E07000114,Thanet District Council,16/08/2016,414419,1833.32,,The Glenwood Hotel,GLE007,Community Services,Revenue,Services,Housing Management,
http://statistics.data.gov.uk/search?search=E07000114,Thanet District Council,16/08/2016,414420,3033.33,,The Glenwood Hotel,GLE007,Community Services,Revenue,Services,Housing Management,
http://statistics.data.gov.uk/search?search=E07000114,Thanet District Council,16/08/2016,414421,3124.99,,The Glenwood Hotel,GLE007,Community Services,Revenue,Services,Housing Management,
http://statistics.data.gov.uk/search?search=E07000114,Thanet District Council,16/08/2016,414643,458.33,,The Glenwood Hotel,GLE007,Community Services,Revenue,Services,Housing Management,
http://statistics.data.gov.uk/search?search=E07000114,Thanet District Council,16/08/2016,414823,11906.55,,Thomson Reuters,THO043,Corporate Governance,Revenue,"Print, Stat And Gen Off Exps",Human Resources,
http://statistics.data.gov.uk/search?search=E07000114,Thanet District Council,16/08/2016,414322,375.00,,Time Inc (Uk) Ltd,TIM008,Operational Services,Revenue,Miscellaneous Expenses,Facilities And Management Serv,
http://statistics.data.gov.uk/search?search=E07000114,Thanet District Council,16/08/2016,414401,1751.25,,Ultra Electronics Limited,ULT007,Corporate Resources and S151,Revenue,Communications & Computing,ICT,
http://statistics.data.gov.uk/search?search=E07000114,Thanet District Council,16/08/2016,414401,583.75,,Ultra Electronics Limited,ULT007,Community Services,Revenue,Communications & Computing,ICT,
http://statistics.data.gov.uk/search?search=E07000114,Thanet District Council,16/08/2016,413713,4418.00,,Uplands Engineering Ltd,UPL001,Operational Services,Revenue,"Repairs,  Alter & Mtce - Build",Maritime Services,
http://statistics.data.gov.uk/search?search=E07000114,Thanet District Council,16/08/2016,414139,4403.00,,Uplands Engineering Ltd,UPL001,Operational Services,Revenue,"Repairs,  Alter & Mtce - Build",Maritime Services,
http://statistics.data.gov.uk/search?search=E07000114,Thanet District Council,16/08/2016,414062,900.00,,Urban Surveying & Design Ltd,URB005,Corporate Resources and S151,Balance Sheet,Community Assets,Consultancy,
http://statistics.data.gov.uk/search?search=E07000114,Thanet District Council,16/08/2016,414433,80.67,,Veolia Es (Uk) Ltd,VEO001,Corporate Resources and S151,Balance Sheet,Rechargeable Works,Environmental Services,
http://statistics.data.gov.uk/search?search=E07000114,Thanet District Council,16/08/2016,414433,2642.70,,Veolia Es (Uk) Ltd,VEO001,Operational Services,Revenue,Cleaning & Domestic Supplies,Environmental Services,
http://statistics.data.gov.uk/search?search=E07000114,Thanet District Council,16/08/2016,414292,267.33,,Viridor Waste Management Ltd,VIR003,Corporate Resources and S151,Revenue,Private Contractors,Environmental Services,
http://statistics.data.gov.uk/search?search=E07000114,Thanet District Council,16/08/2016,414395,312.30,,Viridor Waste Management Ltd,VIR003,Corporate Resources and S151,Revenue,Cleaning & Domestic Supplies,Environmental Services,
http://statistics.data.gov.uk/search?search=E07000114,Thanet District Council,16/08/2016,413436,560.00,,W Brazil & Bros,BRA001,Operational Services,Revenue,Grounds Mtce Costs,Environmental Services,
http://statistics.data.gov.uk/search?search=E07000114,Thanet District Council,16/08/2016,414203,340.00,,Westbrook Construction (Margate) Ltd,WES021,Operational Services,Revenue,"Repairs,  Alter & Mtce - Build",Various Categories,
http://statistics.data.gov.uk/search?search=E07000114,Thanet District Council,16/08/2016,414181,420.00,,Westward Ho Hotel,WES055,Community Services,Revenue,Services,Housing Management,
http://statistics.data.gov.uk/search?search=E07000114,Thanet District Council,16/08/2016,414589,420.00,,Westward Ho Hotel,WES055,Community Services,Revenue,Services,Housing Management,
http://statistics.data.gov.uk/search?search=E07000114,Thanet District Council,16/08/2016,414564,711.00,,Xchanging Global Insurance Sols Ltd,XCH001,East Kent Shared Services,Revenue,Communications & Computing,ICT,
http://statistics.data.gov.uk/search?search=E07000114,Thanet District Council,16/08/2016,414594,448.30,,Xchanging Global Insurance Sols Ltd,XCH001,East Kent Shared Services,Revenue,Communications & Computing,ICT,
http://statistics.data.gov.uk/search?search=E07000114,Thanet District Council,18/08/2016,414293,2913.48,,Canon (Uk) Ltd,CAN021,Corporate Resources and S151,Revenue,"Equip, Furniture And Materials",Facilities And Management Serv,
http://statistics.data.gov.uk/search?search=E07000114,Thanet District Council,18/08/2016,414294,2127.67,,Canon (Uk) Ltd,CAN021,Corporate Resources and S151,Revenue,"Equip, Furniture And Materials",Facilities And Management Serv,
http://statistics.data.gov.uk/search?search=E07000114,Thanet District Council,18/08/2016,414296,813.30,,Canon (Uk) Ltd,CAN021,Corporate Resources and S151,Revenue,"Equip, Furniture And Materials",Facilities And Management Serv,
http://statistics.data.gov.uk/search?search=E07000114,Thanet District Council,18/08/2016,414393,1942.46,,Canon (Uk) Ltd,CAN021,Corporate Resources and S151,Revenue,"Equip, Furniture And Materials",Facilities And Management Serv,
http://statistics.data.gov.uk/search?search=E07000114,Thanet District Council,18/08/2016,415165,1262.41,,Canon (Uk) Ltd,CAN021,Corporate Resources and S151,Revenue,"Equip, Furniture And Materials",Facilities And Management Serv,
http://statistics.data.gov.uk/search?search=E07000114,Thanet District Council,18/08/2016,414809,500.00,,Canterbury City Council,CAN004,Operational Services,Revenue,Training,Various Cats-Public Sector,
http://statistics.data.gov.uk/search?search=E07000114,Thanet District Council,18/08/2016,414570,1600.00,,Canterbury Scaffolding,CAN023,Corporate Resources and S151,Balance Sheet,Council Dwellings,Construction-Repair And Maint,
http://statistics.data.gov.uk/search?search=E07000114,Thanet District Council,18/08/2016,414571,1600.00,,Canterbury Scaffolding,CAN023,Corporate Resources and S151,Balance Sheet,Council Dwellings,Construction-Repair And Maint,
http://statistics.data.gov.uk/search?search=E07000114,Thanet District Council,18/08/2016,414572,1771.39,,Canterbury Scaffolding,CAN023,Corporate Resources and S151,Balance Sheet,Council Dwellings,Construction-Repair And Maint,
http://statistics.data.gov.uk/search?search=E07000114,Thanet District Council,18/08/2016,414787,750.00,,Civica Uk Ltd,CIV003,East Kent Shared Services,Revenue,Communications & Computing,ICT,
http://statistics.data.gov.uk/search?search=E07000114,Thanet District Council,18/08/2016,414603,604.21,,Dennis Eagle Ltd,DEN005,Operational Services,Revenue,Direct Transport Costs,Vehicle Management,
http://statistics.data.gov.uk/search?search=E07000114,Thanet District Council,18/08/2016,414354,360.00,,Dover Counselling Centre,DOV014,Community Services,Revenue,Employee Related Schemes,Healthcare,
http://statistics.data.gov.uk/search?search=E07000114,Thanet District Council,18/08/2016,414355,360.00,,Dover Counselling Centre,DOV014,Corporate Resources and S151,Revenue,Employee Related Schemes,Healthcare,
http://statistics.data.gov.uk/search?search=E07000114,Thanet District Council,18/08/2016,414368,264.00,,East Kent Hose,EKH004,Operational Services,Revenue,Direct Transport Costs,Vehicle Management,
http://statistics.data.gov.uk/search?search=E07000114,Thanet District Council,18/08/2016,415125,530.01,,Edf Energy Customers Plc,EDF004,Operational Services,Revenue,Energy Costs,Utilities,
http://statistics.data.gov.uk/search?search=E07000114,Thanet District Council,18/08/2016,415126,1567.94,,Edf Energy Customers Plc,EDF004,Operational Services,Revenue,Energy Costs,Utilities,
http://statistics.data.gov.uk/search?search=E07000114,Thanet District Council,18/08/2016,415127,1054.77,,Edf Energy Customers Plc,EDF004,Operational Services,Revenue,Energy Costs,Utilities,
http://statistics.data.gov.uk/search?search=E07000114,Thanet District Council,18/08/2016,414600,900.00,,Gulliver'S Truck Hire Limited,GUL001,Operational Services,Revenue,Cont Hire & Operating Lease,Vehicle Management,
http://statistics.data.gov.uk/search?search=E07000114,Thanet District Council,18/08/2016,414228,293.25,,Haynes Of Maidstone Ltd,HAY008,Operational Services,Revenue,Direct Transport Costs,Vehicle Management,
http://statistics.data.gov.uk/search?search=E07000114,Thanet District Council,18/08/2016,414422,8204.86,,Hr Go (Kent) Ltd,HRG001,Operational Services,Revenue,Agency Staff,Human Resources,
http://statistics.data.gov.uk/search?search=E07000114,Thanet District Council,18/08/2016,414423,10285.97,,Hr Go (Kent) Ltd,HRG001,Operational Services,Revenue,Agency Staff,Human Resources,
http://statistics.data.gov.uk/search?search=E07000114,Thanet District Council,18/08/2016,414424,15158.52,,Hr Go (Kent) Ltd,HRG001,Operational Services,Revenue,Agency Staff,Human Resources,
http://statistics.data.gov.uk/search?search=E07000114,Thanet District Council,18/08/2016,414462,776.06,,Hr Go (Kent) Ltd,HRG001,Operational Services,Revenue,Agency Staff,Human Resources,
http://statistics.data.gov.uk/search?search=E07000114,Thanet District Council,18/08/2016,414466,2153.29,,Hr Go (Kent) Ltd,HRG001,Operational Services,Revenue,Agency Staff,Human Resources,
http://statistics.data.gov.uk/search?search=E07000114,Thanet District Council,18/08/2016,414468,1126.00,,Hr Go (Kent) Ltd,HRG001,Operational Services,Revenue,Agency Staff,Human Resources,
http://statistics.data.gov.uk/search?search=E07000114,Thanet District Council,18/08/2016,414469,1360.64,,Hr Go (Kent) Ltd,HRG001,Operational Services,Revenue,Agency Staff,Human Resources,
http://statistics.data.gov.uk/search?search=E07000114,Thanet District Council,18/08/2016,414834,529.47,,Hr Go (Kent) Ltd,HRG001,Community Services,Revenue,Agency Staff,Human Resources,
http://statistics.data.gov.uk/search?search=E07000114,Thanet District Council,18/08/2016,414835,1200.32,,Hr Go (Kent) Ltd,HRG001,Operational Services,Revenue,Agency Staff,Human Resources,
http://statistics.data.gov.uk/search?search=E07000114,Thanet District Council,18/08/2016,414836,425.92,,Hr Go (Kent) Ltd,HRG001,Operational Services,Revenue,Agency Staff,Human Resources,
http://statistics.data.gov.uk/search?search=E07000114,Thanet District Council,18/08/2016,414381,460.00,,John Reeve (Plant Hire) Ltd,REE013,Operational Services,Revenue,Cont Hire & Operating Lease,Vehicle Management,
http://statistics.data.gov.uk/search?search=E07000114,Thanet District Council,18/08/2016,414891,1554.00,,John Reeve (Plant Hire) Ltd,REE013,Operational Services,Revenue,Cont Hire & Operating Lease,Vehicle Management,
http://statistics.data.gov.uk/search?search=E07000114,Thanet District Council,18/08/2016,414747,495.00,,Keith Tait,TAI001,Operational Services,Revenue,Grounds Mtce Costs,Horticultural,
http://statistics.data.gov.uk/search?search=E07000114,Thanet District Council,18/08/2016,414748,495.00,,Keith Tait,TAI001,Operational Services,Revenue,Grounds Mtce Costs,Horticultural,
http://statistics.data.gov.uk/search?search=E07000114,Thanet District Council,18/08/2016,414286,1267.90,,Kenhire Limited,KEN042,Operational Services,Revenue,Cont Hire & Operating Lease,Vehicle Management,
http://statistics.data.gov.uk/search?search=E07000114,Thanet District Council,18/08/2016,414287,1267.90,,Kenhire Limited,KEN042,Operational Services,Revenue,Cont Hire & Operating Lease,Vehicle Management,
http://statistics.data.gov.uk/search?search=E07000114,Thanet District Council,18/08/2016,415180,246362.00,,Kent & Medway Towns Fire Authority,KMT001,Corporate Resources and S151,Balance Sheet,Collection Fund - Preceptors,Various Cats-Public Sector,
http://statistics.data.gov.uk/search?search=E07000114,Thanet District Council,18/08/2016,415178,3894066.00,,Kent County Council,KCC022,Corporate Resources and S151,Balance Sheet,Collection Fund - Preceptors,Various Cats-Public Sector,
http://statistics.data.gov.uk/search?search=E07000114,Thanet District Council,18/08/2016,415179,525761.00,,Kent Police & Crime Commissioner,KPA003,Corporate Resources and S151,Balance Sheet,Collection Fund - Preceptors,Various Cats-Public Sector,
http://statistics.data.gov.uk/search?search=E07000114,Thanet District Council,18/08/2016,414811,460.00,,Knaves Ash Plants,KNA001,Operational Services,Revenue,"Equip, Furniture And Materials",Horticultural,
http://statistics.data.gov.uk/search?search=E07000114,Thanet District Council,18/08/2016,414297,5431.92,,Ling Metals Limited,LIN004,Operational Services,Revenue,Cleaning & Domestic Supplies,Environmental Services,
http://statistics.data.gov.uk/search?search=E07000114,Thanet District Council,18/08/2016,414288,372.24,,Lister Wilder Limited,LIS002,Operational Services,Revenue,"Equip, Furniture And Materials",Horticultural,
http://statistics.data.gov.uk/search?search=E07000114,Thanet District Council,18/08/2016,414734,329.52,,Lister Wilder Limited,LIS002,Operational Services,Revenue,"Equip, Furniture And Materials",Horticultural,
http://statistics.data.gov.uk/search?search=E07000114,Thanet District Council,18/08/2016,413692,5007.92,,Molyneux Rose Ltd Cl Acc-I/S M'Gate,MOL002,Operational Services,Revenue,Premises Insurance,Financial Services,
http://statistics.data.gov.uk/search?search=E07000114,Thanet District Council,18/08/2016,413693,4914.45,,Molyneux Rose Ltd Cl Acc-I/S R'Gate,MOL003,Operational Services,Revenue,Premises Insurance,Facilities And Management Serv,
http://statistics.data.gov.uk/search?search=E07000114,Thanet District Council,18/08/2016,415093,523.60,,Morgan Jones Ltd,MOR001,Corporate Resources and S151,Revenue,Agency Staff,Human Resources,
http://statistics.data.gov.uk/search?search=E07000114,Thanet District Council,18/08/2016,414839,4310.72,,National Boat Shows Ltd,NAT001,Operational Services,Revenue,Miscellaneous Expenses,Arts And Leisure Services,
http://statistics.data.gov.uk/search?search=E07000114,Thanet District Council,18/08/2016,415088,735.00,,Ncc Services Ltd,NCC003,Corporate Resources and S151,Revenue,Communications & Computing,ICT,
http://statistics.data.gov.uk/search?search=E07000114,Thanet District Council,18/08/2016,414425,312.52,,Orbis Protect Limited,ORB009,Corporate Resources and S151,Revenue,Services,Facilities And Management Serv,
http://statistics.data.gov.uk/search?search=E07000114,Thanet District Council,18/08/2016,414016,4727.81,,Ovenden Allworks Limited,OVE008,Operational Services,Revenue,"Repairs,  Alter & Mtce - Build",Construction-Repair And Maint,
http://statistics.data.gov.uk/search?search=E07000114,Thanet District Council,18/08/2016,414020,455.81,,Ovenden Allworks Limited,OVE008,Operational Services,Revenue,"Repairs,  Alter & Mtce - Build",Construction-Repair And Maint,
http://statistics.data.gov.uk/search?search=E07000114,Thanet District Council,18/08/2016,414706,516.40,,P&G Engineering&Welding Supplies Ltd,PGE001,Operational Services,Revenue,Direct Transport Costs,Building Construction Material,
http://statistics.data.gov.uk/search?search=E07000114,Thanet District Council,18/08/2016,414624,267.06,,Paul Nunn Limited,NUN002,Operational Services,Revenue,Direct Transport Costs,Vehicle Management,
http://statistics.data.gov.uk/search?search=E07000114,Thanet District Council,18/08/2016,413807,1456.00,,Portakabin Ltd,POR001,Operational Services,Revenue,"Equip, Furniture And Materials",Facilities And Management Serv,
http://statistics.data.gov.uk/search?search=E07000114,Thanet District Council,18/08/2016,413710,770.00,,R Cannon,CAN007,Operational Services,Revenue,Services,Maritime Services,
http://statistics.data.gov.uk/search?search=E07000114,Thanet District Council,18/08/2016,414860,450.00,,R Cannon,CAN007,Operational Services,Revenue,Services,Maritime Services,
http://statistics.data.gov.uk/search?search=E07000114,Thanet District Council,18/08/2016,414671,15000.00,,Sevenoaks District Council,SEV001,Operational Services,Revenue,Grants & Subscriptions,Various Cats-Public Sector,
http://statistics.data.gov.uk/search?search=E07000114,Thanet District Council,18/08/2016,414837,1490.00,,Sharpe Pritchard Llp,SHA030,Corporate Resources and S151,Balance Sheet,Other Land And Buildings-Hra,Legal Services,
http://statistics.data.gov.uk/search?search=E07000114,Thanet District Council,18/08/2016,414838,3926.00,,Sharpe Pritchard Llp,SHA030,Corporate Resources and S151,Balance Sheet,Other Land And Buildings-Hra,Legal Services,
http://statistics.data.gov.uk/search?search=E07000114,Thanet District Council,18/08/2016,415057,5743.77,,Southern Water,SWA001,Community Services,Revenue,Water Services,Utilities,
http://statistics.data.gov.uk/search?search=E07000114,Thanet District Council,18/08/2016,415129,-537.42,,Southern Water,SWA001,Operational Services,Revenue,Water Services,Utilities,
http://statistics.data.gov.uk/search?search=E07000114,Thanet District Council,18/08/2016,414436,1465.90,,Tetlow King Planning Limited,TET002,Community Services,Revenue,Services,Consultancy,
http://statistics.data.gov.uk/search?search=E07000114,Thanet District Council,18/08/2016,414358,315.00,,Thanet Waste Services Ltd,TWA001,Operational Services,Revenue,Services,Environmental Services,
http://statistics.data.gov.uk/search?search=E07000114,Thanet District Council,18/08/2016,411554,350.00,,Tourism South East,TOU003,Community Services,Revenue,Miscellaneous Expenses,Human Resources,
http://statistics.data.gov.uk/search?search=E07000114,Thanet District Council,18/08/2016,414786,2742.00,,Trust For Thanet Archaeology,TRU008,Community Services,Revenue,"Equip, Furniture And Materials",Arts And Leisure Services,
http://statistics.data.gov.uk/search?search=E07000114,Thanet District Council,19/08/2016,415316,10981.15,,Easy Office Rental Ltd,EAS025,Community Services,Revenue,Other Transfer Payments,Various Categories,
http://statistics.data.gov.uk/search?search=E07000114,Thanet District Council,19/08/2016,N/A,307.51,,REDACTED PERSONAL DATA,N/A,Community Services,Revenue,Car Allowances,Non Trade Payee,
http://statistics.data.gov.uk/search?search=E07000114,Thanet District Council,19/08/2016,N/A,269.36,,REDACTED PERSONAL DATA,N/A,Community Services,Revenue,Car Allowances,Non Trade Payee,
http://statistics.data.gov.uk/search?search=E07000114,Thanet District Council,19/08/2016,N/A,297.39,,REDACTED PERSONAL DATA,N/A,Community Services,Revenue,Car Allowances,Non Trade Payee,
http://statistics.data.gov.uk/search?search=E07000114,Thanet District Council,19/08/2016,N/A,75.81,,REDACTED PERSONAL DATA,N/A,Corporate Governance,Revenue,Car Allowances,Non Trade Payee,
http://statistics.data.gov.uk/search?search=E07000114,Thanet District Council,19/08/2016,N/A,192.90,,REDACTED PERSONAL DATA,N/A,Corporate Governance,Revenue,Public Transport,Non Trade Payee,
http://statistics.data.gov.uk/search?search=E07000114,Thanet District Council,19/08/2016,N/A,4.00,,REDACTED PERSONAL DATA,N/A,Corporate Governance,Revenue,"Print, Stat And Gen Off Exps",Non Trade Payee,
http://statistics.data.gov.uk/search?search=E07000114,Thanet District Council,19/08/2016,N/A,108.25,,REDACTED PERSONAL DATA,N/A,Corporate Governance,Revenue,Expenses,Non Trade Payee,
http://statistics.data.gov.uk/search?search=E07000114,Thanet District Council,19/08/2016,N/A,371.34,,REDACTED PERSONAL DATA,N/A,Operational Services,Revenue,Car Allowances,Non Trade Payee,
http://statistics.data.gov.uk/search?search=E07000114,Thanet District Council,19/08/2016,N/A,14.94,,REDACTED PERSONAL DATA,N/A,Operational Services,Revenue,"Print, Stat And Gen Off Exps",Non Trade Payee,
http://statistics.data.gov.uk/search?search=E07000114,Thanet District Council,19/08/2016,N/A,342.54,,REDACTED PERSONAL DATA,N/A,Operational Services,Revenue,Car Allowances,Non Trade Payee,
http://statistics.data.gov.uk/search?search=E07000114,Thanet District Council,19/08/2016,N/A,294.27,,REDACTED PERSONAL DATA,N/A,Operational Services,Revenue,Car Allowances,Non Trade Payee,
http://statistics.data.gov.uk/search?search=E07000114,Thanet District Council,19/08/2016,N/A,326.97,,REDACTED PERSONAL DATA,N/A,Operational Services,Revenue,Car Allowances,Non Trade Payee,
http://statistics.data.gov.uk/search?search=E07000114,Thanet District Council,19/08/2016,N/A,628.25,,REDACTED PERSONAL DATA,N/A,East Kent Shared Services,Revenue,Car Allowances,Non Trade Payee,
http://statistics.data.gov.uk/search?search=E07000114,Thanet District Council,19/08/2016,N/A,345.65,,REDACTED PERSONAL DATA,N/A,East Kent Shared Services,Revenue,Car Allowances,Non Trade Payee,
http://statistics.data.gov.uk/search?search=E07000114,Thanet District Council,19/08/2016,N/A,607.23,,REDACTED PERSONAL DATA,N/A,East Kent Shared Services,Revenue,Car Allowances,Non Trade Payee,
http://statistics.data.gov.uk/search?search=E07000114,Thanet District Council,19/08/2016,N/A,530.94,,REDACTED PERSONAL DATA,N/A,East Kent Shared Services,Revenue,Car Allowances,Non Trade Payee,
http://statistics.data.gov.uk/search?search=E07000114,Thanet District Council,23/08/2016,415087,280.00,,Advanced Bird & Pest Control Ltd,ADV001,Operational Services,Revenue,"Repairs,  Alter & Mtce - Build",Environmental Services,
http://statistics.data.gov.uk/search?search=E07000114,Thanet District Council,23/08/2016,415422,1431.00,,Arthur J Gallagher (Uk) Limited,GAL011,Corporate Resources and S151,Balance Sheet,Insurance Holding Account,Financial Services,
http://statistics.data.gov.uk/search?search=E07000114,Thanet District Council,23/08/2016,414736,750.00,,Bpi Recycled Products,BPI002,Operational Services,Revenue,"Equip, Furniture And Materials",Environmental Services,
http://statistics.data.gov.uk/search?search=E07000114,Thanet District Council,23/08/2016,415177,285.00,,Buzzlines Travel Ltd,BUZ001,Community Services,Revenue,Services,Agency Payments,
http://statistics.data.gov.uk/search?search=E07000114,Thanet District Council,23/08/2016,414814,10800.00,,Capita Resourcing Ltd,CAP007,Corporate Resources and S151,Revenue,Agency Staff,Human Resources,
http://statistics.data.gov.uk/search?search=E07000114,Thanet District Council,23/08/2016,415083,493.54,,Channel Commercials Plc,CCO001,Operational Services,Revenue,Direct Transport Costs,Vehicle Management,
http://statistics.data.gov.uk/search?search=E07000114,Thanet District Council,23/08/2016,415084,802.50,,Channel Commercials Plc,CCO001,Operational Services,Revenue,Direct Transport Costs,Vehicle Management,
http://statistics.data.gov.uk/search?search=E07000114,Thanet District Council,23/08/2016,414123,3621.10,,Cobalt Telephone Technologies Ltd,COB002,Operational Services,Revenue,Services,ICT,
http://statistics.data.gov.uk/search?search=E07000114,Thanet District Council,23/08/2016,414326,42602.26,,Coombs (Canterbury) Ltd,COO033,Corporate Resources and S151,Balance Sheet,Other Land And Buildings-Hra,Construction-Repair And Maint,
http://statistics.data.gov.uk/search?search=E07000114,Thanet District Council,23/08/2016,405019,13103.00,,Dcb (Kent) Ltd,DCB001,Corporate Resources and S151,Balance Sheet,Repairs And Mtce Holding A/C,Construction-Repair And Maint,
http://statistics.data.gov.uk/search?search=E07000114,Thanet District Council,23/08/2016,414871,256.60,,Dennis Eagle Ltd,DEN005,Operational Services,Revenue,Direct Transport Costs,Vehicle Management,
http://statistics.data.gov.uk/search?search=E07000114,Thanet District Council,23/08/2016,415089,3389.70,,Ecologia Environmental Solutions Ltd,ECO004,Corporate Resources and S151,Balance Sheet,Council Dwellings,Construction-Repair And Maint,
http://statistics.data.gov.uk/search?search=E07000114,Thanet District Council,23/08/2016,414008,5929.18,,Electoral Reform Services,ELE010,Corporate Governance,Revenue,Communications & Computing,Facilities And Management Serv,
http://statistics.data.gov.uk/search?search=E07000114,Thanet District Council,23/08/2016,414008,9986.61,,Electoral Reform Services,ELE010,Corporate Governance,Revenue,"Print, Stat And Gen Off Exps",Facilities And Management Serv,
http://statistics.data.gov.uk/search?search=E07000114,Thanet District Council,23/08/2016,415293,840.00,,Electrical Lighting Solutions Ltd,ELE013,Operational Services,Revenue,"Repairs,  Alter & Mtce - Build",Building Construction Material,
http://statistics.data.gov.uk/search?search=E07000114,Thanet District Council,23/08/2016,415362,7128.13,,Electrical Lighting Solutions Ltd,ELE013,Operational Services,Revenue,"Equip, Furniture And Materials",Building Construction Material,
http://statistics.data.gov.uk/search?search=E07000114,Thanet District Council,23/08/2016,415121,596.30,,First Choice Marshalls Limited,FIR016,Operational Services,Revenue,"Equip, Furniture And Materials",Furniture And Soft Furnishings,
http://statistics.data.gov.uk/search?search=E07000114,Thanet District Council,23/08/2016,415257,468.00,,Forecourt Installation Services Ltd,FOR021,Operational Services,Revenue,"Repairs,  Alter & Mtce - Build",Maritime Services,
http://statistics.data.gov.uk/search?search=E07000114,Thanet District Council,23/08/2016,415118,1660.00,,Four Jays Ltd,FOU007,Community Services,Revenue,Services,Arts And Leisure Services,
http://statistics.data.gov.uk/search?search=E07000114,Thanet District Council,23/08/2016,415113,736.00,,Gas Contract Services Ltd,GAS004,Corporate Resources and S151,Balance Sheet,Repairs And Mtce Holding A/C,Construction-Repair And Maint,
http://statistics.data.gov.uk/search?search=E07000114,Thanet District Council,23/08/2016,415104,4100.00,,Gb Sport & Leisure Uk Ltd,GBS002,Operational Services,Revenue,"Repairs,  Alter & Mtce - Build",Sports Playground Equipment,
http://statistics.data.gov.uk/search?search=E07000114,Thanet District Council,23/08/2016,415173,588.40,,Gefco Uk Limited,GEF001,Operational Services,Revenue,Miscellaneous Expenses,Financial Services,
http://statistics.data.gov.uk/search?search=E07000114,Thanet District Council,23/08/2016,415085,900.00,,Gulliver'S Truck Hire Limited,GUL001,Operational Services,Revenue,Cont Hire & Operating Lease,Vehicle Management,
http://statistics.data.gov.uk/search?search=E07000114,Thanet District Council,23/08/2016,414881,272.32,,H E Municipal Engineering Ltd,HEM003,Operational Services,Revenue,Direct Transport Costs,Vehicle Management,
http://statistics.data.gov.uk/search?search=E07000114,Thanet District Council,23/08/2016,414225,995.69,,Haynes Of Maidstone Ltd,HAY008,Operational Services,Revenue,Direct Transport Costs,Vehicle Management,
http://statistics.data.gov.uk/search?search=E07000114,Thanet District Council,23/08/2016,414623,1400.00,,Hays Specialist Recruitment Ltd,HAY020,Corporate Resources and S151,Revenue,Services,Human Resources,
http://statistics.data.gov.uk/search?search=E07000114,Thanet District Council,23/08/2016,415421,2518.50,,Heath Lambert Limited (Client Money),HEA011,Corporate Resources and S151,Balance Sheet,Insurance Holding Account,Financial Services,
http://statistics.data.gov.uk/search?search=E07000114,Thanet District Council,23/08/2016,415424,47304.00,,Heath Lambert Limited (Client Money),HEA011,Corporate Resources and S151,Balance Sheet,Insurance Holding Account,Financial Services,
http://statistics.data.gov.uk/search?search=E07000114,Thanet District Council,23/08/2016,415425,4001.69,,Heath Lambert Limited (Client Money),HEA011,Corporate Resources and S151,Balance Sheet,Insurance Holding Account,Financial Services,
http://statistics.data.gov.uk/search?search=E07000114,Thanet District Council,23/08/2016,414429,1850.00,,Hemming Group Limited,HEM002,Community Services,Revenue,Advertising Expenses,Financial Services,
http://statistics.data.gov.uk/search?search=E07000114,Thanet District Council,23/08/2016,414829,881.73,,Hr Go (Kent) Ltd,HRG001,Operational Services,Revenue,Agency Staff,Human Resources,
http://statistics.data.gov.uk/search?search=E07000114,Thanet District Council,23/08/2016,414830,1282.93,,Hr Go (Kent) Ltd,HRG001,Operational Services,Revenue,Agency Staff,Human Resources,
http://statistics.data.gov.uk/search?search=E07000114,Thanet District Council,23/08/2016,414831,2167.46,,Hr Go (Kent) Ltd,HRG001,Operational Services,Revenue,Agency Staff,Human Resources,
http://statistics.data.gov.uk/search?search=E07000114,Thanet District Council,23/08/2016,414832,1109.78,,Hr Go (Kent) Ltd,HRG001,Operational Services,Revenue,Agency Staff,Human Resources,
http://statistics.data.gov.uk/search?search=E07000114,Thanet District Council,23/08/2016,414833,219.45,,Hr Go (Kent) Ltd,HRG001,Corporate Resources and S151,Revenue,Agency Staff,Human Resources,
http://statistics.data.gov.uk/search?search=E07000114,Thanet District Council,23/08/2016,414872,8621.25,,Hr Go (Kent) Ltd,HRG001,Operational Services,Revenue,Agency Staff,Human Resources,
http://statistics.data.gov.uk/search?search=E07000114,Thanet District Council,23/08/2016,414875,10491.67,,Hr Go (Kent) Ltd,HRG001,Operational Services,Revenue,Agency Staff,Human Resources,
http://statistics.data.gov.uk/search?search=E07000114,Thanet District Council,23/08/2016,414877,14384.98,,Hr Go (Kent) Ltd,HRG001,Operational Services,Revenue,Agency Staff,Human Resources,
http://statistics.data.gov.uk/search?search=E07000114,Thanet District Council,23/08/2016,415258,427.72,,Hr Go (Kent) Ltd,HRG001,Corporate Resources and S151,Revenue,Agency Staff,Human Resources,
http://statistics.data.gov.uk/search?search=E07000114,Thanet District Council,23/08/2016,415306,219.45,,Hr Go (Kent) Ltd,HRG001,Corporate Resources and S151,Revenue,Agency Staff,Human Resources,
http://statistics.data.gov.uk/search?search=E07000114,Thanet District Council,23/08/2016,415308,309.75,,Hr Go (Kent) Ltd,HRG001,Corporate Resources and S151,Revenue,Agency Staff,Human Resources,
http://statistics.data.gov.uk/search?search=E07000114,Thanet District Council,23/08/2016,415311,529.47,,Hr Go (Kent) Ltd,HRG001,Community Services,Revenue,Agency Staff,Human Resources,
http://statistics.data.gov.uk/search?search=E07000114,Thanet District Council,23/08/2016,413806,300.00,,Hse Training Ltd,HSE002,Operational Services,Revenue,Training,Human Resources,
http://statistics.data.gov.uk/search?search=E07000114,Thanet District Council,23/08/2016,415117,9311.00,,Hydrosphere Uk Limited,HYD009,Corporate Resources and S151,Balance Sheet,Rechargeable Works,Vehicle Management,
http://statistics.data.gov.uk/search?search=E07000114,Thanet District Council,23/08/2016,415117,500.00,,Hydrosphere Uk Limited,HYD009,Operational Services,Revenue,"Equip, Furniture And Materials",Vehicle Management,
http://statistics.data.gov.uk/search?search=E07000114,Thanet District Council,23/08/2016,415332,467.90,,Jewson Ltd,JEW001,Operational Services,Revenue,"Equip, Furniture And Materials",Building Construction Material,
http://statistics.data.gov.uk/search?search=E07000114,Thanet District Council,23/08/2016,415397,674.12,,Kent County Council,KCC002,Corporate Resources and S151,Balance Sheet,Capital Exp-Non Council Assets,Various Cats-Public Sector,
http://statistics.data.gov.uk/search?search=E07000114,Thanet District Council,23/08/2016,415157,400.00,,Km Media Group Limited,KMM001,Community Services,Revenue,Miscellaneous Expenses,Facilities And Management Serv,
http://statistics.data.gov.uk/search?search=E07000114,Thanet District Council,23/08/2016,414257,555.00,,Knaves Ash Plants,KNA001,Operational Services,Revenue,"Equip, Furniture And Materials",Horticultural,
http://statistics.data.gov.uk/search?search=E07000114,Thanet District Council,23/08/2016,414887,252.00,,Kpr Midlink Ltd,KPR004,East Kent Shared Services,Revenue,"Equip, Furniture And Materials",ICT,
http://statistics.data.gov.uk/search?search=E07000114,Thanet District Council,23/08/2016,415119,906.55,,Lister Wilder Limited,LIS002,Operational Services,Revenue,"Equip, Furniture And Materials",Horticultural,
http://statistics.data.gov.uk/search?search=E07000114,Thanet District Council,23/08/2016,415326,581.70,,Loomis Uk Ltd,LOO002,Operational Services,Revenue,Services,Financial Services,
http://statistics.data.gov.uk/search?search=E07000114,Thanet District Council,23/08/2016,415269,376.00,,Lyreco Uk Limited,LYR001,Corporate Resources and S151,Revenue,"Print, Stat And Gen Off Exps",Stationery,
http://statistics.data.gov.uk/search?search=E07000114,Thanet District Council,23/08/2016,415080,573.12,,Main Man Supplies Ltd,MAI001,Operational Services,Revenue,"Equip, Furniture And Materials",Clothing,
http://statistics.data.gov.uk/search?search=E07000114,Thanet District Council,23/08/2016,414865,300.00,,Maxwells Grounds Maintenance Ltd,MAX002,Corporate Resources and S151,Revenue,"Repairs,  Alter & Mtce - Build",Construction-Repair And Maint,
http://statistics.data.gov.uk/search?search=E07000114,Thanet District Council,23/08/2016,414613,1194.97,,Mears Ltd,MEA003,Corporate Resources and S151,Revenue,"Repairs,  Alter & Mtce - Build",Construction-Repair And Maint,
http://statistics.data.gov.uk/search?search=E07000114,Thanet District Council,23/08/2016,415281,309.66,,Mears Ltd,MEA003,Corporate Resources and S151,Revenue,"Repairs,  Alter & Mtce - Build",Construction-Repair And Maint,
http://statistics.data.gov.uk/search?search=E07000114,Thanet District Council,23/08/2016,414673,3000.00,,Medway Council,MED003,Community Services,Revenue,Communications & Computing,Various Cats-Public Sector,
http://statistics.data.gov.uk/search?search=E07000114,Thanet District Council,23/08/2016,413694,9200.53,,Molyneux Rose Ltd Cl Acc-I/S R'Gate,MOL003,Operational Services,Revenue,Rents,Facilities And Management Serv,
http://statistics.data.gov.uk/search?search=E07000114,Thanet District Council,23/08/2016,413720,314.16,,Morgan Jones Ltd,MOR001,Corporate Governance,Revenue,Agency Staff,Human Resources,
http://statistics.data.gov.uk/search?search=E07000114,Thanet District Council,23/08/2016,414118,306.68,,Morgan Jones Ltd,MOR001,Corporate Governance,Revenue,Agency Staff,Human Resources,
http://statistics.data.gov.uk/search?search=E07000114,Thanet District Council,23/08/2016,414619,314.16,,Morgan Jones Ltd,MOR001,Corporate Governance,Revenue,Agency Staff,Human Resources,
http://statistics.data.gov.uk/search?search=E07000114,Thanet District Council,23/08/2016,414621,519.86,,Morgan Jones Ltd,MOR001,Corporate Resources and S151,Revenue,Agency Staff,Human Resources,
http://statistics.data.gov.uk/search?search=E07000114,Thanet District Council,23/08/2016,415094,582.75,,Morgan Jones Ltd,MOR001,Community Services,Revenue,Agency Staff,Human Resources,
http://statistics.data.gov.uk/search?search=E07000114,Thanet District Council,23/08/2016,415095,620.84,,Morgan Jones Ltd,MOR001,Corporate Resources and S151,Revenue,Agency Staff,Human Resources,
http://statistics.data.gov.uk/search?search=E07000114,Thanet District Council,23/08/2016,415097,15000.00,,Neopost Limited Neofunds,NEO004,Corporate Resources and S151,Revenue,Communications & Computing,Mail Services,
http://statistics.data.gov.uk/search?search=E07000114,Thanet District Council,23/08/2016,415122,417.00,,Orbital Net Ltd,ORB008,East Kent Shared Services,Revenue,Communications & Computing,ICT,
http://statistics.data.gov.uk/search?search=E07000114,Thanet District Council,23/08/2016,414431,2874.15,,Parkeon Limited,PAR063,Community Services,Revenue,"Equip, Furniture And Materials",Street And Traffic Management,
http://statistics.data.gov.uk/search?search=E07000114,Thanet District Council,23/08/2016,414431,23568.25,,Parkeon Limited,PAR063,Operational Services,Revenue,"Equip, Furniture And Materials",Street And Traffic Management,
http://statistics.data.gov.uk/search?search=E07000114,Thanet District Council,23/08/2016,414868,490.00,,R Cannon,CAN007,Operational Services,Revenue,Services,Maritime Services,
http://statistics.data.gov.uk/search?search=E07000114,Thanet District Council,23/08/2016,414146,900.00,,Ray Hole Architects Ltd,HOL037,Corporate Resources and S151,Balance Sheet,Other Land And Buildings-Hra,Construction-Repair And Maint,
http://statistics.data.gov.uk/search?search=E07000114,Thanet District Council,23/08/2016,415331,360.00,,Rigby Taylor Ltd,RIG002,Operational Services,Revenue,"Equip, Furniture And Materials",Horticultural,
http://statistics.data.gov.uk/search?search=E07000114,Thanet District Council,23/08/2016,414039,486.00,,Sellick Partnership Ltd,SEL011,Corporate Governance,Revenue,Agency Staff,Human Resources,
http://statistics.data.gov.uk/search?search=E07000114,Thanet District Council,23/08/2016,414586,360.00,,Sellick Partnership Ltd,SEL011,Corporate Governance,Revenue,Agency Staff,Human Resources,
http://statistics.data.gov.uk/search?search=E07000114,Thanet District Council,23/08/2016,414374,1577.08,,Terberg Matec Uk Limited,TER010,Operational Services,Revenue,Direct Transport Costs,Vehicle Management,
http://statistics.data.gov.uk/search?search=E07000114,Thanet District Council,23/08/2016,414383,11003.45,,Town & Country Cleaners Ltd,TOW002,Corporate Resources and S151,Balance Sheet,Repairs And Mtce Holding A/C,Cleaning And Janitorial,
http://statistics.data.gov.uk/search?search=E07000114,Thanet District Council,23/08/2016,414651,280.00,,W Brazil & Bros,BRA001,Operational Services,Revenue,Grounds Mtce Costs,Environmental Services,
http://statistics.data.gov.uk/search?search=E07000114,Thanet District Council,23/08/2016,415103,1472.00,,X S Platforms Uk Limited,XSP001,Corporate Resources and S151,Revenue,"Repairs,  Alter & Mtce - Build",Health And Safety,
http://statistics.data.gov.uk/search?search=E07000114,Thanet District Council,24/08/2016,415578,387.32,,Allstar Business Solutions Ltd,ALL038,Operational Services,Revenue,Direct Transport Costs,Vehicle Management,
http://statistics.data.gov.uk/search?search=E07000114,Thanet District Council,24/08/2016,414898,-197191.00,,Secretary Of State,SEC003,Corporate Resources and S151,Revenue,Revenue Financing,Government Agencies,
http://statistics.data.gov.uk/search?search=E07000114,Thanet District Council,24/08/2016,414898,1083259.00,,Secretary Of State,SEC003,Corporate Resources and S151,Balance Sheet,Collection Fund,Government Agencies,
http://statistics.data.gov.uk/search?search=E07000114,Thanet District Council,25/08/2016,415277,375.00,,Anthony Swandale,SWA023,Community Services,Revenue,Services,Arts And Leisure Services,
http://statistics.data.gov.uk/search?search=E07000114,Thanet District Council,25/08/2016,414867,320.00,,Assettrac Ltd,ASS012,Operational Services,Revenue,"Equip, Furniture And Materials",ICT,
http://statistics.data.gov.uk/search?search=E07000114,Thanet District Council,25/08/2016,415582,6768.29,,Bramling Construction Ltd,BRA020,Corporate Resources and S151,Balance Sheet,Capital Exp-Non Council Assets,Grants,
http://statistics.data.gov.uk/search?search=E07000114,Thanet District Council,25/08/2016,414634,5063.32,,Dover District Council,DOV001,Corporate Resources and S151,Revenue,Employee Related Schemes,Various Cats-Public Sector,
http://statistics.data.gov.uk/search?search=E07000114,Thanet District Council,25/08/2016,415377,529.60,,Eagle Envelopes Ltd,EAG001,East Kent Shared Services,Revenue,"Print, Stat And Gen Off Exps",Stationery,
http://statistics.data.gov.uk/search?search=E07000114,Thanet District Council,25/08/2016,415581,816.20,,Family Mosaic Housing,FAM001,Corporate Resources and S151,Balance Sheet,Capital Exp-Non Council Assets,Housing Management,
http://statistics.data.gov.uk/search?search=E07000114,Thanet District Council,25/08/2016,415642,427.72,,Hr Go (Kent) Ltd,HRG001,Corporate Resources and S151,Revenue,Agency Staff,Human Resources,
http://statistics.data.gov.uk/search?search=E07000114,Thanet District Council,25/08/2016,415641,975.00,,Iken Business Ltd,IKE001,Corporate Governance,Revenue,Communications & Computing,ICT,
http://statistics.data.gov.uk/search?search=E07000114,Thanet District Council,25/08/2016,414606,33229.98,,J Breheny Contractors Ltd,BRE002,Corporate Resources and S151,Balance Sheet,Infrastructure,Construction-Repair And Maint,
http://statistics.data.gov.uk/search?search=E07000114,Thanet District Council,25/08/2016,415583,1766.50,,John Gale,GAL001,Corporate Resources and S151,Balance Sheet,Capital Exp-Non Council Assets,Grants,
http://statistics.data.gov.uk/search?search=E07000114,Thanet District Council,25/08/2016,415361,4452.00,,Kent County Council,KCC002,Community Services,Revenue,Services,Various Cats-Public Sector,
http://statistics.data.gov.uk/search?search=E07000114,Thanet District Council,25/08/2016,415270,319.98,,Lyreco Uk Limited,LYR001,Operational Services,Revenue,"Equip, Furniture And Materials",Stationery,
http://statistics.data.gov.uk/search?search=E07000114,Thanet District Council,25/08/2016,415367,310.00,,Magnartism Ltd,MAG006,Community Services,Revenue,"Equip, Furniture And Materials",Stationery,
http://statistics.data.gov.uk/search?search=E07000114,Thanet District Council,25/08/2016,415544,810.00,,Main Man Supplies Ltd,MAI001,Operational Services,Revenue,"Clothes, Uniforms & Laundry",Clothing,
http://statistics.data.gov.uk/search?search=E07000114,Thanet District Council,25/08/2016,415561,629.00,,Michael Page Int Recruitment Ltd,PAG008,Corporate Resources and S151,Revenue,Agency Staff,Human Resources,
http://statistics.data.gov.uk/search?search=E07000114,Thanet District Council,25/08/2016,415082,3255.00,,Nick Dawson Designs Limited,DAW005,Corporate Resources and S151,Revenue,Fixtures & Fittings,Building Construction Material,
http://statistics.data.gov.uk/search?search=E07000114,Thanet District Council,25/08/2016,415584,18570.00,,Northwood Builders,NOR002,Corporate Resources and S151,Balance Sheet,Capital Exp-Non Council Assets,Grants,
http://statistics.data.gov.uk/search?search=E07000114,Thanet District Council,25/08/2016,414289,346.25,,Rigby Taylor Ltd,RIG002,Operational Services,Revenue,"Equip, Furniture And Materials",Horticultural,
http://statistics.data.gov.uk/search?search=E07000114,Thanet District Council,25/08/2016,415401,3489.00,,Thomson Reuters,THO043,Corporate Governance,Revenue,"Print, Stat And Gen Off Exps",Human Resources,
http://statistics.data.gov.uk/search?search=E07000114,Thanet District Council,25/08/2016,414017,2009.50,,Viridian Energy Solutions Limited,VIR005,Corporate Resources and S151,Balance Sheet,Repairs And Mtce Holding A/C,Facilities And Management Serv,
http://statistics.data.gov.uk/search?search=E07000114,Thanet District Council,26/08/2016,PC8668,13.98,,123 Reg,N/A,Corporate Resources and S151,Revenue,Communications & Computing,ICT,
http://statistics.data.gov.uk/search?search=E07000114,Thanet District Council,26/08/2016,PC8629,36.89,,247 Blinds,N/A,Community Services,Revenue,"Equip, Furniture And Materials",Furniture & Soft Furnishings,
http://statistics.data.gov.uk/search?search=E07000114,Thanet District Council,26/08/2016,PC8639,90.00,,AAT,N/A,Corporate Resources and S151,Revenue,Training,Human Resources,
http://statistics.data.gov.uk/search?search=E07000114,Thanet District Council,26/08/2016,PC8561,22.95,3.83,Amazon UK Marketplace,N/A,East Kent Shared Services,Revenue,"Equip, Furniture And Materials",Stationery,
http://statistics.data.gov.uk/search?search=E07000114,Thanet District Council,26/08/2016,PC8605,22.48,,Amazon UK Marketplace,N/A,Community Services,Revenue,"Equip, Furniture And Materials",Stationery,
http://statistics.data.gov.uk/search?search=E07000114,Thanet District Council,26/08/2016,PC8633,16.03,,Amazon UK Marketplace,N/A,Chief Executive,Revenue,"Equip, Furniture And Materials",Stationery,
http://statistics.data.gov.uk/search?search=E07000114,Thanet District Council,26/08/2016,PC8636,10.46,1.75,Amazon UK Marketplace,N/A,East Kent Shared Services,Revenue,"Print, Stat And Gen Off Exps",Stationery,
http://statistics.data.gov.uk/search?search=E07000114,Thanet District Council,26/08/2016,PC8638,6.55,,Amazon UK Marketplace,N/A,East Kent Shared Services,Revenue,"Print, Stat And Gen Off Exps",Stationery,
http://statistics.data.gov.uk/search?search=E07000114,Thanet District Council,26/08/2016,PC8641,206.60,34.44,Amazon UK Marketplace,N/A,Chief Executive,Revenue,Expenses,Stationery,
http://statistics.data.gov.uk/search?search=E07000114,Thanet District Council,26/08/2016,PC8635,7.96,,Amazon UK Retail,N/A,East Kent Shared Services,Revenue,Communications & Computing,Stationery,
http://statistics.data.gov.uk/search?search=E07000114,Thanet District Council,26/08/2016,PC8642,12.05,,Amazon UK Retail Amazon.Camazon.Co.Uk,N/A,Chief Executive,Revenue,Expenses,Stationery,
http://statistics.data.gov.uk/search?search=E07000114,Thanet District Council,26/08/2016,PC8599,99.17,,AO.Com,N/A,Operational Services,Revenue,"Equip, Furniture And Materials",Domestic Goods,
http://statistics.data.gov.uk/search?search=E07000114,Thanet District Council,26/08/2016,PC8670,24.99,,Argos,N/A,Operational Services,Revenue,"Equip, Furniture And Materials",Facilities And Management Serv,
http://statistics.data.gov.uk/search?search=E07000114,Thanet District Council,26/08/2016,PC8620,262.60,,Autoglass,N/A,Operational Services,Revenue,"Equip, Furniture And Materials",Vehicle Management,
http://statistics.data.gov.uk/search?search=E07000114,Thanet District Council,26/08/2016,PC8645,353.46,,Barnard & Westwood Ltd,N/A,Chief Executive,Revenue,Expenses,Stationery,
http://statistics.data.gov.uk/search?search=E07000114,Thanet District Council,26/08/2016,PC8567,51.96,,Chalkboards Uk,N/A,Community Services,Revenue,"Equip, Furniture And Materials",Stationery,
http://statistics.data.gov.uk/search?search=E07000114,Thanet District Council,26/08/2016,PC8652,450.00,75,CIPFA.Org.UK/Pfmco,N/A,Community Services,Revenue,Expenses,Human Resources,
http://statistics.data.gov.uk/search?search=E07000114,Thanet District Council,26/08/2016,PC8602,652.50,,DVLA Vehicle Tax,N/A,Operational Services,Revenue,Direct Transport Costs,Various Cats - Public Sector,
http://statistics.data.gov.uk/search?search=E07000114,Thanet District Council,26/08/2016,PC8649,164.00,,F J Rogers,N/A,Community Services,Revenue,"Equip, Furniture And Materials",Facilities And Management Serv,
http://statistics.data.gov.uk/search?search=E07000114,Thanet District Council,26/08/2016,PC8657,194.25,,Facebook,N/A,Community Services,Revenue,Advrtsng-Frm 7/8 Incl Promotns,Facilities And Management Serv,
http://statistics.data.gov.uk/search?search=E07000114,Thanet District Council,26/08/2016,PC8658,5.77,,Facebook,N/A,Community Services,Revenue,Advrtsng-Frm 7/8 Incl Promotns,Facilities And Management Serv,
http://statistics.data.gov.uk/search?search=E07000114,Thanet District Council,26/08/2016,PC8659,25.87,,Facebook,N/A,Community Services,Revenue,Advrtsng-Frm 7/8 Incl Promotns,Facilities And Management Serv,
http://statistics.data.gov.uk/search?search=E07000114,Thanet District Council,26/08/2016,PC8586,139.50,,Firstaid4Less,N/A,Operational Services,Revenue,"Equip, Furniture And Materials",Healthcare,
http://statistics.data.gov.uk/search?search=E07000114,Thanet District Council,26/08/2016,PC8587,49.00,,Firstaid4Less,N/A,Operational Services,Revenue,"Equip, Furniture And Materials",Healthcare,
http://statistics.data.gov.uk/search?search=E07000114,Thanet District Council,26/08/2016,PC8651,354.17,,Flexiform/Asgard,N/A,Operational Services,Revenue,"Equip, Furniture And Materials",Facilities And Management Serv,
http://statistics.data.gov.uk/search?search=E07000114,Thanet District Council,26/08/2016,PC8576,10.98,,Halfords,N/A,Operational Services,Revenue,"Equip, Furniture And Materials",Vehicle Management,
http://statistics.data.gov.uk/search?search=E07000114,Thanet District Council,26/08/2016,PC8615,74.14,,Halfords,N/A,Community Services,Revenue,Services,Vehicle Management,
http://statistics.data.gov.uk/search?search=E07000114,Thanet District Council,26/08/2016,PC8618,20.83,,Hobbycraft Group Ltd,N/A,Community Services,Revenue,Grants & Subscriptions,Stationery,
http://statistics.data.gov.uk/search?search=E07000114,Thanet District Council,26/08/2016,PC8016,54.17,,Holiday Inn  Leicester,N/A,Corporate Resources and S151,Revenue,Training,Human Resources,
http://statistics.data.gov.uk/search?search=E07000114,Thanet District Council,26/08/2016,PC8646,87.75,,Lab Tek Instruments,N/A,Community Services,Revenue,Fixtures & Fittings,Stationery,
http://statistics.data.gov.uk/search?search=E07000114,Thanet District Council,26/08/2016,PC8643,29.99,,Memarmband (Paypal),N/A,Chief Executive,Revenue,Expenses,Clothing,
http://statistics.data.gov.uk/search?search=E07000114,Thanet District Council,26/08/2016,PC8606,60.00,,MoneyClaim.Gov,N/A,Operational Services,Revenue,Services,Various Cats - Public Sector,
http://statistics.data.gov.uk/search?search=E07000114,Thanet District Council,26/08/2016,PC8640,230.00,,Oakwood Hse Training,N/A,Corporate Resources and S151,Revenue,Expenses,Human Resources,
http://statistics.data.gov.uk/search?search=E07000114,Thanet District Council,26/08/2016,PC8634,79.16,,PCS Computer Supplies,N/A,East Kent Shared Services,Revenue,Communications & Computing,ICT,
http://statistics.data.gov.uk/search?search=E07000114,Thanet District Council,26/08/2016,PC8578,325.00,,Possession Claims Online,N/A,Community Services,Revenue,Services,Various Cats - Public Sector,
http://statistics.data.gov.uk/search?search=E07000114,Thanet District Council,26/08/2016,PC8579,325.00,,Possession Claims Online,N/A,Community Services,Revenue,Services,Various Cats - Public Sector,
http://statistics.data.gov.uk/search?search=E07000114,Thanet District Council,26/08/2016,PC8582,325.00,,Possession Claims Online,N/A,Community Services,Revenue,Services,Various Cats - Public Sector,
http://statistics.data.gov.uk/search?search=E07000114,Thanet District Council,26/08/2016,PC8585,325.00,,Possession Claims Online,N/A,Community Services,Revenue,Services,Various Cats - Public Sector,
http://statistics.data.gov.uk/search?search=E07000114,Thanet District Council,26/08/2016,PC8598,325.00,,Possession Claims Online,N/A,Community Services,Revenue,Services,Various Cats - Public Sector,
http://statistics.data.gov.uk/search?search=E07000114,Thanet District Council,26/08/2016,PC8600,325.00,,Possession Claims Online,N/A,Community Services,Revenue,Services,Various Cats - Public Sector,
http://statistics.data.gov.uk/search?search=E07000114,Thanet District Council,26/08/2016,PC8603,121.00,,Possession Claims Online,N/A,Community Services,Revenue,Services,Various Cats - Public Sector,
http://statistics.data.gov.uk/search?search=E07000114,Thanet District Council,26/08/2016,PC8604,325.00,,Possession Claims Online,N/A,Community Services,Revenue,Services,Various Cats - Public Sector,
http://statistics.data.gov.uk/search?search=E07000114,Thanet District Council,26/08/2016,PC8616,325.00,,Possession Claims Online,N/A,Community Services,Revenue,Services,Various Cats - Public Sector,
http://statistics.data.gov.uk/search?search=E07000114,Thanet District Council,26/08/2016,PC8617,325.00,,Possession Claims Online,N/A,Community Services,Revenue,Services,Various Cats - Public Sector,
http://statistics.data.gov.uk/search?search=E07000114,Thanet District Council,26/08/2016,PC8619,325.00,,Possession Claims Online,N/A,Community Services,Revenue,Services,Various Cats - Public Sector,
http://statistics.data.gov.uk/search?search=E07000114,Thanet District Council,26/08/2016,PC8621,325.00,,Possession Claims Online,N/A,Community Services,Revenue,Services,Various Cats - Public Sector,
http://statistics.data.gov.uk/search?search=E07000114,Thanet District Council,26/08/2016,PC8648,0.84,,Poundland,N/A,Operational Services,Revenue,Catering,Catering,
http://statistics.data.gov.uk/search?search=E07000114,Thanet District Council,26/08/2016,PC8669,2.00,,Poundland,N/A,Operational Services,Revenue,Catering,Catering,
http://statistics.data.gov.uk/search?search=E07000114,Thanet District Council,26/08/2016,PC8577,0.84,,Poundland Ltd,N/A,Community Services,Revenue,Catering,Catering,
http://statistics.data.gov.uk/search?search=E07000114,Thanet District Council,26/08/2016,PC8574,9.17,,Poundworld Retail,N/A,Operational Services,Revenue,"Equip, Furniture And Materials",Stationery,
http://statistics.data.gov.uk/search?search=E07000114,Thanet District Council,26/08/2016,PC8601,298.80,,Quarterman Windscreeens ,N/A,Operational Services,Revenue,Direct Transport Costs,Vehicle Management,
http://statistics.data.gov.uk/search?search=E07000114,Thanet District Council,26/08/2016,PC8597,59.05,,RIBA Enterprises Ltd,N/A,Community Services,Revenue,"Print, Stat And Gen Off Exps",Stationery,
http://statistics.data.gov.uk/search?search=E07000114,Thanet District Council,26/08/2016,PC8613,43.45,,RIBA Enterprises Ltd,N/A,Operational Services,Revenue,"Print, Stat And Gen Off Exps",Stationery,
http://statistics.data.gov.uk/search?search=E07000114,Thanet District Council,26/08/2016,PC8614,55.85,,RIBA Enterprises Ltd,N/A,Community Services,Revenue,"Print, Stat And Gen Off Exps",Stationery,
http://statistics.data.gov.uk/search?search=E07000114,Thanet District Council,26/08/2016,PC8562,45.00,,Robins Paper Bags Co Ltd,N/A,Community Services,Revenue,"Print, Stat And Gen Off Exps",Stationery,
http://statistics.data.gov.uk/search?search=E07000114,Thanet District Council,26/08/2016,PC8655,100.60,,Royal Mail,N/A,Community Services,Revenue,"Equip, Furniture And Materials",Mail Services,
http://statistics.data.gov.uk/search?search=E07000114,Thanet District Council,26/08/2016,PC8625,42.00,,Sainsburys,N/A,Operational Services,Revenue,Catering,Catering,
http://statistics.data.gov.uk/search?search=E07000114,Thanet District Council,26/08/2016,PC8622,333.33,,Screwfix Direct,N/A,Community Services,Revenue,Services,Building Construction Material,
http://statistics.data.gov.uk/search?search=E07000114,Thanet District Council,26/08/2016,PC8654,100.00,,Seaward Color Copy Shop,N/A,Operational Services,Revenue,"Equip, Furniture And Materials",Facilities And Management Serv,
http://statistics.data.gov.uk/search?search=E07000114,Thanet District Council,26/08/2016,PC8588,139.00,,Shutterstock,N/A,Corporate Resources and S151,Revenue,"Print, Stat And Gen Off Exps",Facilities And Management Serv,
http://statistics.data.gov.uk/search?search=E07000114,Thanet District Council,26/08/2016,PC8667,139.00,,Shutterstock,N/A,Corporate Resources and S151,Revenue,"Print, Stat And Gen Off Exps",Facilities And Management Serv,
http://statistics.data.gov.uk/search?search=E07000114,Thanet District Council,26/08/2016,PC8611,77.70,,Southeastern Web,N/A,Community Services,Revenue,Public Transport,Human Resources,
http://statistics.data.gov.uk/search?search=E07000114,Thanet District Council,26/08/2016,PC8612,99.80,,Southeastern Web,N/A,Community Services,Revenue,Public Transport,Human Resources,
http://statistics.data.gov.uk/search?search=E07000114,Thanet District Council,26/08/2016,PC8627,16.10,,Southeastern Web,N/A,Community Services,Revenue,Expenses,Human Resources,
http://statistics.data.gov.uk/search?search=E07000114,Thanet District Council,26/08/2016,PC8628,19.20,,Southeastern Web,N/A,Community Services,Revenue,Public Transport,Human Resources,
http://statistics.data.gov.uk/search?search=E07000114,Thanet District Council,26/08/2016,PC8631,77.70,,Southeastern Web,N/A,Chief Executive,Revenue,Public Transport,Human Resources,
http://statistics.data.gov.uk/search?search=E07000114,Thanet District Council,26/08/2016,PC8565,3.17,,Standfast  Burglar Alarm,N/A,Community Services,Revenue,Fixtures & Fittings,Facilities And Management Serv,
http://statistics.data.gov.uk/search?search=E07000114,Thanet District Council,26/08/2016,PC8581,33.32,,Standfast Burglar Alarm,N/A,Operational Services,Revenue,"Equip, Furniture And Materials",Facilities And Management Serv,
http://statistics.data.gov.uk/search?search=E07000114,Thanet District Council,26/08/2016,PC8580,3.17,,Tesco ,N/A,Community Services,Revenue,"Equip, Furniture And Materials",Catering,
http://statistics.data.gov.uk/search?search=E07000114,Thanet District Council,26/08/2016,PC8566,355.00,,Thanet County Court,N/A,Community Services,Revenue,Services,Various Cats - Public Sector,
http://statistics.data.gov.uk/search?search=E07000114,Thanet District Council,26/08/2016,PC8596,355.00,,Thanet County Court,N/A,Community Services,Revenue,Services,Various Cats - Public Sector,
http://statistics.data.gov.uk/search?search=E07000114,Thanet District Council,26/08/2016,PC8647,6.08,,The Cupcake Cafe,N/A,Community Services,Revenue,Catering,Catering,
http://statistics.data.gov.uk/search?search=E07000114,Thanet District Council,26/08/2016,PC8644,69.00,,Toye Kenning & Spencer,N/A,Chief Executive,Revenue,Expenses,Clothing,
http://statistics.data.gov.uk/search?search=E07000114,Thanet District Council,26/08/2016,PC8660,9.75,,Toye Kenning & Spencer,N/A,Chief Executive,Revenue,Expenses,Clothing,
http://statistics.data.gov.uk/search?search=E07000114,Thanet District Council,26/08/2016,PC8571,178.67,,Travelodge Agent,N/A,Corporate Resources and S151,Revenue,Training,Human Resources,
http://statistics.data.gov.uk/search?search=E07000114,Thanet District Council,26/08/2016,PC8626,90.74,,Trews,N/A,Operational Services,Revenue,"Clothes, Uniforms & Laundry",Clothing,
http://statistics.data.gov.uk/search?search=E07000114,Thanet District Council,26/08/2016,PC8608,163.00,,Virgin Trains,N/A,East Kent Shared Services,Revenue,Expenses,Human Resources,
http://statistics.data.gov.uk/search?search=E07000114,Thanet District Council,26/08/2016,PC8609,181.00,,Virgin Trains,N/A,East Kent Shared Services,Revenue,Expenses,Human Resources,
http://statistics.data.gov.uk/search?search=E07000114,Thanet District Council,26/08/2016,PC8610,19.00,,Virgin Trains,N/A,East Kent Shared Services,Revenue,Expenses,Human Resources,
http://statistics.data.gov.uk/search?search=E07000114,Thanet District Council,26/08/2016,PC8623,201.00,,Virgin Trains,N/A,East Kent Shared Services,Revenue,Public Transport,Human Resources,
http://statistics.data.gov.uk/search?search=E07000114,Thanet District Council,26/08/2016,PC8632,61.85,,Virgin Trains,N/A,Director Of Corp Governance,Revenue,Public Transport,Human Resources,
http://statistics.data.gov.uk/search?search=E07000114,Thanet District Council,26/08/2016,PC8624,95.83,,Walpole Bay Hotel,N/A,Community Services,Revenue,Rents,Human Resources,
http://statistics.data.gov.uk/search?search=E07000114,Thanet District Council,26/08/2016,PC8607,5.75,,Wilko Retail Limited,N/A,Operational Services,Revenue,"Equip, Furniture And Materials",Facilities And Management Serv,
http://statistics.data.gov.uk/search?search=E07000114,Thanet District Council,26/08/2016,PC8650,15.79,,Wilko Retail Limited,N/A,Operational Services,Revenue,"Equip, Furniture And Materials",Facilities And Management Serv,
http://statistics.data.gov.uk/search?search=E07000114,Thanet District Council,26/08/2016,PC8575,6.75,1.13,WM Morrisons PLC,N/A,Community Services,Revenue,Catering,Catering,
http://statistics.data.gov.uk/search?search=E07000114,Thanet District Council,26/08/2016,PC8630,11.83,,WMS PLC,N/A,Community Services,Revenue,"Clothes, Uniforms & Laundry",Cleaning & Janitorial,
http://statistics.data.gov.uk/search?search=E07000114,Thanet District Council,31/08/2016,415260,263.54,,Academia Ltd,ACA008,Corporate Governance,Revenue,Communications & Computing,ICT,
http://statistics.data.gov.uk/search?search=E07000114,Thanet District Council,31/08/2016,415406,494.40,,Amenity Horticultural Serv Ltd,AME001,Operational Services,Revenue,"Equip, Furniture And Materials",Horticultural,
http://statistics.data.gov.uk/search?search=E07000114,Thanet District Council,31/08/2016,415407,380.00,,Amenity Horticultural Serv Ltd,AME001,Operational Services,Revenue,"Equip, Furniture And Materials",Horticultural,
http://statistics.data.gov.uk/search?search=E07000114,Thanet District Council,31/08/2016,415356,640.00,,Astra Uk (Contracts) Ltd,AST003,Operational Services,Revenue,"Repairs,  Alter & Mtce - Build",Environmental Services,
http://statistics.data.gov.uk/search?search=E07000114,Thanet District Council,31/08/2016,415264,9500.00,,Callcredit Limited,CAL009,East Kent Shared Services,Revenue,Communications & Computing,Financial Services,
http://statistics.data.gov.uk/search?search=E07000114,Thanet District Council,31/08/2016,415329,609.70,,Dennis Eagle Ltd,DEN005,Operational Services,Revenue,Direct Transport Costs,Vehicle Management,
http://statistics.data.gov.uk/search?search=E07000114,Thanet District Council,31/08/2016,414614,3150.00,,Dha Planning Limited,DHA002,Community Services,Revenue,Services,Consultancy,
http://statistics.data.gov.uk/search?search=E07000114,Thanet District Council,31/08/2016,414199,1433.00,,Frontier-Pitts Limited,FRO001,Operational Services,Revenue,"Repairs,  Alter & Mtce - Build",Building Construction Material,
http://statistics.data.gov.uk/search?search=E07000114,Thanet District Council,31/08/2016,415556,1900.00,,Gb Sport & Leisure Uk Ltd,GBS002,Operational Services,Revenue,"Repairs,  Alter & Mtce - Build",Sports Playground Equipment,
http://statistics.data.gov.uk/search?search=E07000114,Thanet District Council,31/08/2016,415330,1127.72,,Glasdon Uk Ltd,GLA001,Corporate Governance,Revenue,"Equip, Furniture And Materials",Environmental Services,
http://statistics.data.gov.uk/search?search=E07000114,Thanet District Council,31/08/2016,415639,428.00,,Grammer & Company Limited,GRA024,Community Services,Revenue,"Print, Stat And Gen Off Exps",Facilities And Management Serv,
http://statistics.data.gov.uk/search?search=E07000114,Thanet District Council,31/08/2016,415415,880.00,,Harmer & Sons Grounds Maiint Ltd,HAR074,Operational Services,Revenue,Services,Vehicle Management,
http://statistics.data.gov.uk/search?search=E07000114,Thanet District Council,31/08/2016,415107,1400.00,,Hays Specialist Recruitment Ltd,HAY020,Corporate Resources and S151,Revenue,Services,Human Resources,
http://statistics.data.gov.uk/search?search=E07000114,Thanet District Council,31/08/2016,415380,650.00,,Hi Way Services Ltd,HIW002,Operational Services,Revenue,"Repairs,  Alter & Mtce - Build",Highway Equipment And Material,
http://statistics.data.gov.uk/search?search=E07000114,Thanet District Council,31/08/2016,415307,1210.90,,Hr Go (Kent) Ltd,HRG001,Operational Services,Revenue,Agency Staff,Human Resources,
http://statistics.data.gov.uk/search?search=E07000114,Thanet District Council,31/08/2016,415309,1263.43,,Hr Go (Kent) Ltd,HRG001,Operational Services,Revenue,Agency Staff,Human Resources,
http://statistics.data.gov.uk/search?search=E07000114,Thanet District Council,31/08/2016,415312,2039.21,,Hr Go (Kent) Ltd,HRG001,Operational Services,Revenue,Agency Staff,Human Resources,
http://statistics.data.gov.uk/search?search=E07000114,Thanet District Council,31/08/2016,415381,8966.73,,Hr Go (Kent) Ltd,HRG001,Operational Services,Revenue,Agency Staff,Human Resources,
http://statistics.data.gov.uk/search?search=E07000114,Thanet District Council,31/08/2016,415382,10307.64,,Hr Go (Kent) Ltd,HRG001,Operational Services,Revenue,Agency Staff,Human Resources,
http://statistics.data.gov.uk/search?search=E07000114,Thanet District Council,31/08/2016,415541,13908.97,,Hr Go (Kent) Ltd,HRG001,Operational Services,Revenue,Agency Staff,Human Resources,
http://statistics.data.gov.uk/search?search=E07000114,Thanet District Council,31/08/2016,415693,309.75,,Hr Go (Kent) Ltd,HRG001,Corporate Resources and S151,Revenue,Agency Staff,Human Resources,
http://statistics.data.gov.uk/search?search=E07000114,Thanet District Council,31/08/2016,415637,800.00,,Independent Reviews Ltd,IND013,Community Services,Revenue,Grants & Subscriptions,Consultancy,
http://statistics.data.gov.uk/search?search=E07000114,Thanet District Council,31/08/2016,415268,13245.65,,Kent County Council,KCC002,Corporate Resources and S151,Revenue,Rents,Various Cats-Public Sector,
http://statistics.data.gov.uk/search?search=E07000114,Thanet District Council,31/08/2016,415319,1257.11,,Kent County Council (Kcs),KCC003,Operational Services,Revenue,Energy Costs,Facilities And Management Serv,
http://statistics.data.gov.uk/search?search=E07000114,Thanet District Council,31/08/2016,415320,1341.37,,Kent County Council (Kcs),KCC003,Operational Services,Revenue,Energy Costs,Facilities And Management Serv,
http://statistics.data.gov.uk/search?search=E07000114,Thanet District Council,31/08/2016,415321,859.90,,Kent County Council (Kcs),KCC003,Operational Services,Revenue,Energy Costs,Facilities And Management Serv,
http://statistics.data.gov.uk/search?search=E07000114,Thanet District Council,31/08/2016,415322,31120.85,,Kent County Council (Kcs),KCC003,Operational Services,Revenue,Direct Transport Costs,Facilities And Management Serv,
http://statistics.data.gov.uk/search?search=E07000114,Thanet District Council,31/08/2016,415323,1141.97,,Kent County Council (Kcs),KCC003,Operational Services,Revenue,Energy Costs,Facilities And Management Serv,
http://statistics.data.gov.uk/search?search=E07000114,Thanet District Council,31/08/2016,415411,1575.78,,Link Support Services (Uk) Ltd,LIN012,Corporate Resources and S151,Revenue,Training,Human Resources,
http://statistics.data.gov.uk/search?search=E07000114,Thanet District Council,31/08/2016,415633,292.02,,Lobster Van Hire Ltd,LOB001,Operational Services,Revenue,Cont Hire & Operating Lease,Vehicle Management,
http://statistics.data.gov.uk/search?search=E07000114,Thanet District Council,31/08/2016,415562,252.95,,Main Man Supplies Ltd,MAI001,Operational Services,Revenue,"Clothes, Uniforms & Laundry",Clothing,
http://statistics.data.gov.uk/search?search=E07000114,Thanet District Council,31/08/2016,415363,419.19,,Mears Ltd,MEA003,Corporate Resources and S151,Revenue,"Repairs,  Alter & Mtce - Build",Construction-Repair And Maint,
http://statistics.data.gov.uk/search?search=E07000114,Thanet District Council,31/08/2016,415363,908.84,,Mears Ltd,MEA003,Operational Services,Revenue,"Repairs,  Alter & Mtce - Build",Construction-Repair And Maint,
http://statistics.data.gov.uk/search?search=E07000114,Thanet District Council,31/08/2016,415364,2766.33,,Mears Ltd,MEA003,Community Services,Revenue,"Repairs,  Alter & Mtce - Build",Construction-Repair And Maint,
http://statistics.data.gov.uk/search?search=E07000114,Thanet District Council,31/08/2016,415365,1805.71,,Mears Ltd,MEA003,Community Services,Revenue,"Repairs,  Alter & Mtce - Build",Construction-Repair And Maint,
http://statistics.data.gov.uk/search?search=E07000114,Thanet District Council,31/08/2016,415366,97706.27,,Mears Ltd,MEA003,Community Services,Revenue,"Repairs,  Alter & Mtce - Build",Construction-Repair And Maint,
http://statistics.data.gov.uk/search?search=E07000114,Thanet District Council,31/08/2016,415408,303.84,,Mears Ltd,MEA003,Corporate Resources and S151,Revenue,"Repairs,  Alter & Mtce - Build",Construction-Repair And Maint,
http://statistics.data.gov.uk/search?search=E07000114,Thanet District Council,31/08/2016,415552,770.00,,Mears Ltd,MEA003,Corporate Resources and S151,Balance Sheet,Other Land And Buildings-Hra,Construction-Repair And Maint,
http://statistics.data.gov.uk/search?search=E07000114,Thanet District Council,31/08/2016,415558,591.75,,Mears Ltd,MEA003,Corporate Resources and S151,Revenue,"Repairs,  Alter & Mtce - Build",Construction-Repair And Maint,
http://statistics.data.gov.uk/search?search=E07000114,Thanet District Council,31/08/2016,415559,270.56,,Mears Ltd,MEA003,Corporate Resources and S151,Revenue,"Repairs,  Alter & Mtce - Build",Construction-Repair And Maint,
http://statistics.data.gov.uk/search?search=E07000114,Thanet District Council,31/08/2016,415596,2400.00,,Michael Page Int Recruitment Ltd,PAG008,Corporate Resources and S151,Revenue,Services,Human Resources,
http://statistics.data.gov.uk/search?search=E07000114,Thanet District Council,31/08/2016,414119,396.90,,Morgan Jones Ltd,MOR001,Corporate Resources and S151,Revenue,Agency Staff,Human Resources,
http://statistics.data.gov.uk/search?search=E07000114,Thanet District Council,31/08/2016,415091,396.90,,Morgan Jones Ltd,MOR001,Corporate Resources and S151,Revenue,Agency Staff,Human Resources,
http://statistics.data.gov.uk/search?search=E07000114,Thanet District Council,31/08/2016,415092,314.16,,Morgan Jones Ltd,MOR001,Corporate Governance,Revenue,Agency Staff,Human Resources,
http://statistics.data.gov.uk/search?search=E07000114,Thanet District Council,31/08/2016,415587,582.75,,Morgan Jones Ltd,MOR001,Community Services,Revenue,Agency Staff,Human Resources,
http://statistics.data.gov.uk/search?search=E07000114,Thanet District Council,31/08/2016,415588,396.90,,Morgan Jones Ltd,MOR001,Corporate Resources and S151,Revenue,Agency Staff,Human Resources,
http://statistics.data.gov.uk/search?search=E07000114,Thanet District Council,31/08/2016,415634,419.79,,Morgan Jones Ltd,MOR001,Chief Executive,Revenue,Agency Staff,Human Resources,
http://statistics.data.gov.uk/search?search=E07000114,Thanet District Council,31/08/2016,415554,2650.00,,Oscar Associates (Uk) Limited,OSC001,East Kent Shared Services,Revenue,Agency Staff,ICT,
http://statistics.data.gov.uk/search?search=E07000114,Thanet District Council,31/08/2016,415378,4650.12,,Parkeon Limited,PAR063,Operational Services,Revenue,"Equip, Furniture And Materials",Street And Traffic Management,
http://statistics.data.gov.uk/search?search=E07000114,Thanet District Council,31/08/2016,415543,413.16,,Probrand Ltd,PRO012,Operational Services,Revenue,Communications & Computing,ICT,
http://statistics.data.gov.uk/search?search=E07000114,Thanet District Council,31/08/2016,415106,350.00,,R J Broadley Tree Surgery,RJB002,Corporate Resources and S151,Balance Sheet,Repairs And Mtce Holding A/C,Horticultural,
http://statistics.data.gov.uk/search?search=E07000114,Thanet District Council,31/08/2016,414375,12146.50,,Rostrvm Solutions Ltd,ROS019,East Kent Shared Services,Revenue,Communications & Computing,ICT,
http://statistics.data.gov.uk/search?search=E07000114,Thanet District Council,31/08/2016,415341,314.73,,Southern Electric,SEL007,Community Services,Revenue,Energy Costs,Utilities,
http://statistics.data.gov.uk/search?search=E07000114,Thanet District Council,31/08/2016,415342,283.86,,Southern Electric,SEL007,Community Services,Revenue,Energy Costs,Utilities,
http://statistics.data.gov.uk/search?search=E07000114,Thanet District Council,31/08/2016,415344,2958.13,,Southern Electric,SEL007,Community Services,Revenue,Energy Costs,Utilities,
http://statistics.data.gov.uk/search?search=E07000114,Thanet District Council,31/08/2016,415346,2372.26,,Southern Electric,SEL007,Community Services,Revenue,Energy Costs,Utilities,
http://statistics.data.gov.uk/search?search=E07000114,Thanet District Council,31/08/2016,415348,546.97,,Southern Electric,SEL007,Operational Services,Revenue,Energy Costs,Utilities,
http://statistics.data.gov.uk/search?search=E07000114,Thanet District Council,31/08/2016,415353,2037.85,,Southern Electric,SEL007,Community Services,Revenue,Energy Costs,Utilities,
http://statistics.data.gov.uk/search?search=E07000114,Thanet District Council,31/08/2016,415384,2913.53,,Southern Electric,SEL007,Community Services,Revenue,Energy Costs,Utilities,
http://statistics.data.gov.uk/search?search=E07000114,Thanet District Council,31/08/2016,415385,2193.86,,Southern Electric,SEL007,Community Services,Revenue,Energy Costs,Utilities,
http://statistics.data.gov.uk/search?search=E07000114,Thanet District Council,31/08/2016,415386,1629.36,,Southern Electric,SEL007,Community Services,Revenue,Energy Costs,Utilities,
http://statistics.data.gov.uk/search?search=E07000114,Thanet District Council,31/08/2016,415263,2868.06,,Southern Water,SWA001,Operational Services,Revenue,Water Services,Utilities,
http://statistics.data.gov.uk/search?search=E07000114,Thanet District Council,31/08/2016,415538,1044.23,,Southern Water,SWA001,Operational Services,Revenue,Water Services,Utilities,
http://statistics.data.gov.uk/search?search=E07000114,Thanet District Council,31/08/2016,415598,780.80,,Southern Water,SWA001,Operational Services,Revenue,Water Services,Utilities,
http://statistics.data.gov.uk/search?search=E07000114,Thanet District Council,31/08/2016,415358,300.00,,Ssl247 Ltd,SSL001,East Kent Shared Services,Revenue,Communications & Computing,ICT,
http://statistics.data.gov.uk/search?search=E07000114,Thanet District Council,31/08/2016,415324,386.82,,Tennant Uk Cleaning Solutions Ltd,TEN006,Operational Services,Revenue,Direct Transport Costs,Vehicle Management,
http://statistics.data.gov.uk/search?search=E07000114,Thanet District Council,31/08/2016,415294,397.50,,The Bell Brush Company,BEL018,Operational Services,Revenue,"Equip, Furniture And Materials",Cleaning And Janitorial,
http://statistics.data.gov.uk/search?search=E07000114,Thanet District Council,31/08/2016,415161,3860.00,,Turner & Townsend Project Mgmt Ltd,TUR021,Corporate Resources and S151,Balance Sheet,Other Land And Buildings-Hra,Consultancy,
http://statistics.data.gov.uk/search?search=E07000114,Thanet District Council,31/08/2016,415072,4632.50,,Urban Surveying & Design Ltd,URB005,Corporate Resources and S151,Balance Sheet,Other Land And Buildings-Hra,Consultancy,
http://statistics.data.gov.uk/search?search=E07000114,Thanet District Council,31/08/2016,413690,4155.00,,Weir & Carmichael Limited,WEI004,Operational Services,Revenue,"Equip, Furniture And Materials",Environmental Services,
http://statistics.data.gov.uk/search?search=E07000114,Thanet District Council,31/08/2016,415780,500.00,,Windmill Inn Public House,WIN014,Corporate Governance,Revenue,Rents,Facilities And Management Serv,
http://statistics.data.gov.uk/search?search=E07000114,Thanet District Council,31/08/2016,415781,500.00,,Windmill Inn Public House,WIN014,Corporate Governance,Revenue,Rents,Facilities And Management Serv,
